Workbook

Sheet 1stOpen
H16: PROFESSIONAL VERSION 8R-CI Program© COMPLEX SOFTWARE PACKAGE Project Start [.
C18: Remain | D18: 5
A23: 
A24:  This file is generated for online use only. Any distribution or reproduction of this program Excel file in whole or in part, or the divulgence of any of its contents is expressly prohibited.
A25:  It's professional version on in which all editing functions have been enabled. You will be able to make changes to it. The program is protected from potentially malicious virus attack.
A26:  We provide this basic program software for operation without warranty, if you make changes, either expressed or implied. This includes, but is not limited to, the implied warranties of
A27:  fitness for a particular purpose. It assumes that you are not familiar with the programming language that is being applied. Our support team can help explain the functionality of every
A28:  particular procedure and they can modify thes version to provide added functionality or construct procedures to meet your specific requirements. | P28: Click Continue Ø to go on.

Sheet Bul
A1: 0 | D1: 1.86 | E1: RA-R | H1: PT-R | I1: PT-S | J1: o Max Ratio | K1: 1 | L1: FIRST INSTRUCTION | AF1: Column "C" | AG1: Column "D"
A2: 0 | B2: 6 | E2: 1.2 | I2: 8 | J2: l Max Score | K2: 8 | X2: | | AA2: MANUAL | AD2: more | AF2: 7 | CJ2: 9
A3: 0 | E3: 1.1 | I3: 10 | J3: 2 | K3: Look the 8-factor model on the left; select a Factor, e.g.l on the the graph matrix below. То make quantitative assessment fix a | AA3: (supposed you're familiar with the general description) | AF3: 8
E4: 1.1 | I4: 10 | J4: 1 | K4: Score of this Factor from 1 to 10 by   Spin Button (ActiveX Control). Click the appropriate button bearing the same althabe- | AA4: Click the Shield left to start. Follow the instructions of the messages. | AF4: 10
E5: 1.2 | I5: 9 | J5: 3 | K5: tic index ("l ") to enter the assessment in the Factor's Cell (C14). Do the same for the next 7 Factors. The same procedure | X5: 1) | Y5: Click the graph (or the associated to it button right) to select the purpose of your assessment | AF5: 9
K6: referes to the Personality Traite assessment - the idea of a quality assessment (to see it click the chart or the button on it). | Y6: purpose of the assessment - Risk or Personality Traits.
D7: I'd suggest you to visit Investopedia | E7: 1.2 | I7: 9 | J7: 5 | K7:  Fill in your name, or select it from drop-down list | O7:  Brief annotation - outline of the project | X7: 2) | Y7: Select Score by the Spin Button and Ratio by Scroll Bar for each of | AF7: 9
A8: =C14 -> 0 | B8: =C15 -> 0 | E8: 1 | H8: 1 | I8: 10 | J8: 10 | L8: IIC | Y8: the eight-factor model, shown on the graph left and push the | AF8: 10 | CJ8: 3
A9: =C14 -> 0 | B9: =C15 -> 0 | C9: =C16 -> 0 | D9: =C17 -> 0 | E9: =C20 -> 0 | F9: =C20 -> 0 | G9: =C21 -> 0 | H9: =C22 -> 0 | I9: 9 | J9: 4 | K9:  | O9: Write here your name if operate as assessor | Y9: respective button. | AA9: Important ↓ | AF9: 9
A10: =D14*C14 -> 0 | B10: =D15*C15 -> 0 | C10: =D16*C16 -> 0 | D10: =D17*C17 -> 0 | E10: =D19*C19 -> 0 | F10: =D20*C20 -> 0 | G10: =D21*C21 -> 0 | H10: =D22*C22 -> 0 | I10: 9 | J10: 7 | O10: PREFABRICATED HOUSES and HALLS | AF10: 8
B11: =D15 -> 0 | C11: =D16 -> 0 | F11: =D20 -> 0 | G11: =D21 -> 0 | J11: =IF(E24>B24,E24,"") ->  | R11: CLOBAL STEEL Ltd. | X11: 3) | Y11: Final quantitative assessment is the relative Ratio of impact of each Factor over the total level of risk (RA) orpersonality (PT). Move the Scroll Bar (to the right of the operating matrix). Cell H18 changes its value from 0.05 up to 1.2 only and shows the amendments of Critical Ratio. When select the desired value, just push the relevant button with the same index as the Score.
A12: =IF(A1=1,"G","F") -> F | B12: Assessment | C12: Score | D12: Ô Impact of Factor | G12: Relative | H12: Current Ratio | J12: Please Note: | K12: OCFCS below means Online Cash-Flow Control System. It is for control during the loan repayment period (Recommended to purchase it) | X12: Note. | Y12: The ready assessment, that you have made, is doubled on Sheet Practce1 in OPERATING FORM. From there, you can save your RA data in a selected sub-matrix as you click the button "Complete" of the sub-matrix. There are four groups of submatrices. The project company operators slect sub-matricrs from the first Group "A". They proceed first without having preliminary information how other groups would assess the situation. Push to clean up the submat- rix. To deleat all system data click the button on the left-top corner.
B13: Factor↓ . | C13: Risk | D13: Ratio Ó | E13: Extent | F13: r | G13: Level | J13: Advisable margins of scoring of the assessments depending on availability of OCFCS, category of investor, type of the business, etc.
A14: 1 | E14: =C14*D14 -> 0 | F14: l od | G14: =E14*E15/2 -> 0 | J14: l . OCFCS not available: If you are a strategic or hands-on investor, assess with ❹ or ❺. If you are an angel or venture capitalist, rate between ❼ and ❿. l . OCFCS is available: Select ❶ or ❷, but control weekly or monthly buz/action plan; if you find drop of "Cash" graph, download the accounting documents.
A15: 3 | E15: =C15*D15 -> 0 | F15: d oc | G15: =E15*E16/2 -> 0 | J15: d . OCFCS not available: If you are a strategic or hands-on investor, assess with to ❹ or ❺. If you are angel or venture capitalist, rate between ❻ and ❽. d . OCFCS is available: Select ❶ or ❷, but control weekly or monthly buz/action plan; if you find drop of "Cash" graph, download the accounting documents.
A16: 5 | E16: =C16*D16 -> 0 | F16: c oe | G16: =E16*E17/2 -> 0 | J16: e . If the business is in the field of Renewables, drug industry, select ❶ or ❷; if it produces other or is in the service field, select ❸ to ❼. If OCFCS is not available, increase all scoring by ③ points Û . Manage currently the deceision making body and immediately implement financial monitoring system.
A17: 7 | E17: =C17*D17 -> 0 | F17: l oe | G17: =E14*E17/2 -> 0 | I17: 1.5 | J17: c . If the investment is inside US and EU, select ⓪; if it's overseass, and if you are a strategic or hands-on investor, assess with to ❹ or ❺. If you are an angel investor or venture capitalist, rate between ❼ and ❾. Larger investment, higher scorling. | X17: 4) | Y17: Group D's sub-matices are intended for PT assessment data only.
H18: =I19/100 -> 1.2 | I18: =H18 -> 1.2 | J18: × Update here the General Critical Ratioþ for any risk impact and posterior probabilities for specific events of each risk Factor. | X18: 5) | Y18: This product is developed for achievement of total level of the risk assessment in order to be possible its further management. The mainstreaming indication are the critical levels of (i) total RA, indicated with M, and (ii) PT of the decision maker, indicat-ed with M, which significantly affects over the operational risk (o ) of the analyzed business venture, here indicated with → →
A19: 2 | E19: =C19*D19 -> 0 | F19: i op | G19: =E19*E20/2 -> 0 | I19: 120 | J19: i . In borrowed funds, if the credit agreement stipulates fixd ann. interest - ❶, if flowting - ❺, but finally conform it with the rating of the credit bank.
A20: 4 | E20: =C20*D20 -> 0 | F20: p ob | G20: =E20*E21/2 -> 0 | J20: o .Depends on internal procedures, system and people. It's human risk. For type of idustry and business climat take Scores ❶ or ❷ for investment deceisions. Select Ratio < ❶ for industry with lower human interaction, and > ❶ < ❷ for higher. For both, when is all over here change the mode and run Personality Traits.
A21: 6 | E21: =C21*D21 -> 0 | F21: b oo | G21: =E21*E22/2 -> 0 | J21: p . If the investment is inside US and EU, select ⓪; if it's overseass, and if you are a strategic or hands-on investor, rate between ❺ and ❾. In Africa - firmly and without hesitation ❿. | AE21: N
A22: 8 | E22: =C22*D22 -> 0 | F22: i ob | G22: =E22*E19/2 -> 0 | J22: b . OCFCS not available: If you are a strategic or hands-on investor, rate between ❹ and ❻. If you are angel or venture capitalist, rate between ❻ and ❾. b. OCFCS is available: Rate between ❶ and ❹, but control weekly or monthly bus/action plan; if you find drop of "Cash" graph, intervent in managment now. | X22: 6) | Y22: The above critical levels are: (i) for total RA―it is rounded to 6; the average sum in column "Relative level" of mutually interac-ting each other all risk factors, each on the critical levels, Score 8 (1 to 10), multiplied by the maximum Ratio 1.20. (Cell G24); (ii) for PT it is made in column "Extent" from еаch risk Factor = 8 multiplied by Ratios, round down to 6.
A23: Assess personality traits - see more > | C23: =(SUM(C14:C17)+SUM(C19:C22))/8 -> 0 | D23: =(SUM(D14:D17)+SUM(D19:D22))/8 -> 0 | F23: Total: | G23: =SUM(G14:G22) -> 0
B24: 6 | C24: With impact [ | E24: =((SUM(E19:E22)+SUM(E14:E17)))/9.3 -> 0 | F24: Level: | G24: =G23/52 -> 0 | H24: > Risk
I26: About online control: | V26: Use the Button to close the file and protect it from demages  .
I27: • Incorporate the most accurate and transparent financials in the marketplace into your models;
I28: • Make audit of numbers back to source documents with our robust "click-through" functionality.
X29: 7) | Y29: Recommendation. Use the buttoms (no tabs) to broese the worksheets.
A33: 0

Sheet Practice1
A1: 0 | B1: =IF(OR(G8>G12*A60,G9>G12*A60,G10>G12*A60,G11>G12*A60,G13>G12*A60,G14>G12*A60,G15>G12*A60,G16>G12*A60),"Y","N") -> N | F1: OPERATING | K1: 1 | L1: 2 | M1: 3 | N1: 4 | O1: 5 | P1: 6 | Q1: 7 | R1: 8 | AS1: BRIEF | AV1: more
F2: FORM | L2: =M18 -> 2.130107527 | M2: =Q18 -> 0 | N2: =U18 -> 0 | O2: =Y18 -> 0 | P2: =AC18 -> 0 | Q2: =AG18 -> 0 | R2: =AK18 -> 0 | AO2: ● The OPERATING FORM presents the last financial risk assessment or personal traits of Operating matrix, Sheet "Bul".
A3: =Bul!L8 -> IIC | F3: < Assessment Scoring | G3: RISK or PERSONALITY ? . | K3: =H31 -> 0 | L3: =M31 -> 0 | M3: =Q31 -> 0 | N3: =U31 -> 0 | O3: =Y31 -> 0 | P3: =AC31 -> 0 | Q3: =AG31 -> 0 | R3: =AK31 -> 0 | AL3: To | AO3: ● Make the following: Store there each assessment as click button "Complete" of CONSECUTIVELY selected sub-matrix of groups "A", "B" or "C"—for risk assessment (RA), or "D"—for personality trait (PT). In each sub-matrix appears indication "Risk" or "Person" for oversight of your correct selection.
A4: | Group | C4: To Sheet File | G4: FORWARDING MATRIX | J4: TOTAL LEVEL | K4: =H44 -> 0 | L4: =M44 -> 0 | M4: =Q44 -> 0 | N4: =U44 -> 0 | O4: =Y44 -> 0 | P4: =AC44 -> 0 | Q4: =AG44 -> 0 | R4: =AK44 -> 0 | AB4: =J57 -> 0 | AC4: =N57 -> 0 | AD4: =R57 -> 0 | AE4: =V57 -> 0 | AF4: =Z57 -> 0 | AG4: =AD57 -> 0 | AH4: =AH57 -> 0 | AI4: =AL57 -> 0 | AL4: Risk Management
K5: =H57 -> 0 | L5: =M57 -> 0 | M5: =Q57 -> 0 | N5: =U57 -> 0 | O5: =Y57 -> 0 | P5: =AC57 -> 0 | Q5: =AG57 -> 0 | R5: =AK57 -> 0 | AE5: =AM17/100 -> 0.02130107527 | AF5: =AM30/100 -> 0 | AG5: =AM43/100 -> 0 | AH5: =AM58/100 -> 0
G6: =IF(I18>0,IF(AND(A1=1,J18>0),"Risk","Person"),"") -> Person | I6: Factor | AO6: ● Red digital code (the first figure is the number of the group) in the upper part of the sub-matrix indicates that it was correct completed for subsequent data processing.
A7: A | C7: INSIDE EXPERTISE | G7: Ratio | H7: 1001 | J7: =IF(J18>1,1,0) -> 0 | K7: 1002 | M7: =IF(N18>0,IF(AND(A1=1,N18>0),"Risk","Person"),"") -> Person | N7: =IF(N18>0,1,0) -> 1 | O7: 1003 | Q7: =IF(R18>0,IF(AND(A1=1,R18>0),"Risk","Person"),"") ->  | R7: =IF(R18>0,1,0) -> 0 | S7: 1004 | U7: =IF(V18>0,IF(AND(A1=1,V18>0),"Risk","Person"),"") ->  | V7: =IF(V18>0,1,0) -> 0 | W7: 1005 | Y7: =IF(Z18>0,IF(AND(A1=1,Z18>0),"Risk","Person"),"") ->  | Z7: =IF(Z18>0,1,0) -> 0 | AA7: 1006 | AC7: =IF(AD18>0,IF(AND(I1=1,AD18>0),"Risk","Person"),"") ->  | AD7: =IF(AD18>0,1,0) -> 0 | AE7: 1007 | AG7: =IF(AH18>0,IF(AND(A1=1,AH18>0),"Risk","Person"),"") ->  | AH7: =IF(AH18>1,1,0) -> 0 | AI7: 1008 | AK7: =IF(AL18>0,IF(AND(A1=1,AL18>0),"Risk","Person"),"") ->  | AL7: =IF(AL18>0,1,0) -> 0 | AM7: =N7+R7+V7+Z7+AD7+AH7+AL7 -> 1
A8: l | C8: Lenders Capital Risk | F8: =Bul!$C$14 -> 0 | G8: =Bul!D14 -> 0 | H8: =Bul!E14 -> 0 | I8: l | J8: =H8*H9/2 -> 0 | K8: 1 | L8: 0.9 | M8: =K8*L8 -> 0.9 | N8: =M8*M9/2 -> 0.54 | Q8: =O8*P8 -> 0 | R8: =Q8*Q9/2 -> 0 | U8: =S8*T8 -> 0 | V8: =U8*U9/2 -> 0 | Y8: =W8*X8 -> 0 | Z8: =Y8*Y9/2 -> 0 | AC8: =AA8*AB8 -> 0 | AD8: =AC8*AC9/2 -> 0 | AG8: =AE8*AF8 -> 0 | AH8: =AG8*AG9/2 -> 0 | AK8: =AI8*AJ8 -> 0 | AL8: =AK8*AK9/2 -> 0 | AO8: ● Every group of sub-matrices has a sign appearing as follows:
A9: d | C9: Default Risk | F9: =Bul!$C$15 -> 0 | G9: =Bul!D15 -> 0 | H9: =Bul!E15 -> 0 | I9: d | J9: =H9*H10/2 -> 0 | K9: 1 | L9: 1.2 | M9: =K9*L9 -> 1.2 | N9: =M9*M10/2 -> 0.03 | Q9: =O9*P9 -> 0 | R9: =Q9*Q10/2 -> 0 | U9: =S9*T9 -> 0 | V9: =U9*U10/2 -> 0 | Y9: =W9*X9 -> 0 | Z9: =Y9*Y10/2 -> 0 | AC9: =AA9*AB9 -> 0 | AD9: =AC9*AC10/2 -> 0 | AG9: =AE9*AF9 -> 0 | AH9: =AG9*AG10/2 -> 0 | AK9: =AI9*AJ9 -> 0 | AL9: =AK9*AK10/2 -> 0 | AO9: ‒ (A) INSITE EXPERTS―when the value of the average risk is higher then the critical one, 6; it provokes assignments of EXTERNAL ASSESSOR's expertises with ¬ indications.
A10: e | C10: Economic Risk | F10: =Bul!$C$16 -> 0 | G10: =Bul!D16 -> 0 | H10: =Bul!E16 -> 0 | I10: e | J10: =H11*H10/2 -> 0 | K10: 1 | L10: 0.05 | M10: =K10*L10 -> 0.05 | N10: =M11*M10/2 -> 0.08025 | Q10: =O10*P10 -> 0 | R10: =Q11*Q10/2 -> 0 | U10: =S10*T10 -> 0 | V10: =U11*U10/2 -> 0 | Y10: =W10*X10 -> 0 | Z10: =Y11*Y10/2 -> 0 | AC10: =AA10*AB10 -> 0 | AD10: =AC11*AC10/2 -> 0 | AG10: =AE10*AF10 -> 0 | AH10: =AG11*AG10/2 -> 0 | AK10: =AI10*AJ10 -> 0 | AL10: =AK11*AK10/2 -> 0
A11: c | C11: Currency Risk | F11: =Bul!$C$17 -> 0 | G11: =Bul!D17 -> 0 | H11: =Bul!E17 -> 0 | I11: c | J11: =H8*H11/2 -> 0 | K11: 3 | L11: 1.07 | M11: =K11*L11 -> 3.21 | N11: =M8*M11/2 -> 1.4445 | Q11: =O11*P11 -> 0 | R11: =Q8*Q11/2 -> 0 | V11: =U8*U11/2 -> 0 | Y11: =W11*X11 -> 0 | Z11: =Y8*Y11/2 -> 0 | AC11: =AA11*AB11 -> 0 | AD11: =AC8*AC11/2 -> 0 | AG11: =AE11*AF11 -> 0 | AH11: =AG8*AG11/2 -> 0 | AK11: =AI11*AJ11 -> 0 | AL11: =AK8*AK11/2 -> 0 | AN11: ←Average
G12: =Bul!C18 -> 0 | L12: 0 | AO12: ‒ (B) If at least one of EXTERNAL ASSESSOR's sub-matrices shows critical or over it total value of the risk, index ¬ appears. Assignment of INDEPENDENT AUDITS by Group D is then strictly recommended with the same alert indication ¬.
A13: i | C13: Interest Rate Risk | F13: =Bul!$C$19 -> 0 | G13: =Bul!D19 -> 0 | H13: =Bul!E19 -> 0 | I13: i | J13: =H13*H14/2 -> 0 | K13: 5 | L13: 0.05 | M13: =K13*L13 -> 0.25 | N13: =M13*M14/2 -> 0.125 | Q13: =O13*P13 -> 0 | R13: =Q13*Q14/2 -> 0 | U13: =S13*T13 -> 0 | V13: =U13*U14/2 -> 0 | Y13: =W13*X13 -> 0 | Z13: =Y13*Y14/2 -> 0 | AC13: =AA13*AB13 -> 0 | AD13: =AC13*AC14/2 -> 0 | AG13: =AE13*AF13 -> 0 | AH13: =AG13*AG14/2 -> 0 | AK13: =AI13*AJ13 -> 0 | AL13: =AK13*AK14/2 -> 0
A14: p | C14: Political Risk | F14: =Bul!$C$20 -> 0 | G14: =Bul!D20 -> 0 | H14: =IF(AND($A$1=1,F14*G14>A60,AM46=0),Bul!E20,IF(AND(A1=1,Bul!G24>=A62,AM46>0),(F14*G14+AM58*AN54/100),Bul!G24)) -> 0 | I14: p | J14: =H14*H15/2 -> 0 | K14: 1 | L14: 1 | M14: =K14*L14 -> 1 | N14: =M14*M15/2 -> 2.4 | Q14: =O14*P14 -> 0 | R14: =Q14*Q15/2 -> 0 | U14: =S14*T14 -> 0 | V14: =U14*U15/2 -> 0 | Y14: =W14*X14 -> 0 | Z14: =Y14*Y15/2 -> 0 | AC14: =AA14*AB14 -> 0 | AD14: =AC14*AC15/2 -> 0 | AG14: =AE14*AF14 -> 0 | AH14: =AG14*AG15/2 -> 0 | AK14: =AI14*AJ14 -> 0 | AL14: =AK14*AK15/2 -> 0 | AM14: Σo | AN14: =M14+Q14+U14+Y14+AC14+AG14+AK14 -> 1
A15: b | C15: Reputation Risk | E15: =IF(OR($M$14>=A60,$Q$14,$U$14>=A60,$Y$14>=A60,$AC$14>=A60,$AG$14>=A60,AK14>=A60),"N","") ->  | F15: =Bul!$C$21 -> 0 | G15: =Bul!D21 -> 0 | H15: =Bul!E21 -> 0 | I15: b | J15: =H13*H16/2 -> 0 | K15: 4 | L15: 1.2 | M15: =K15*L15 -> 4.8 | N15: =M16*M13/2 -> 1.05 | Q15: =O15*P15 -> 0 | R15: =Q16*Q13/2 -> 0 | U15: =S15*T15 -> 0 | V15: =U16*U13/2 -> 0 | Y15: =W15*X15 -> 0 | Z15: =Y16*Y13/2 -> 0 | AC15: =AA15*AB15 -> 0 | AD15: =AC16*AC13/2 -> 0 | AG15: =AE15*AF15 -> 0 | AH15: =AG16*AG13/2 -> 0 | AK15: =AI15*AJ15 -> 0 | AL15: =AK16*AK13/2 -> 0 | AM15: =IF(AM7>0,AM16/AM7,0) -> 2.875 | AN15: =IF(AM7>0,AN14/AM7,0) -> 1
A16: o | C16: Operational Risk | F16: =Bul!$C$22 -> 0 | G16: =Bul!D22 -> 0 | H16: =Bul!E22 -> 0 | I16: o | J16: =H16*H15/2 -> 0 | K16: 7 | L16: 1.2 | M16: =K16*L16 -> 8.4 | N16: =M15*M16/2 -> 20.16 | Q16: =O16*P16 -> 0 | R16: =Q15*Q16/2 -> 0 | U16: =S16*T16 -> 0 | V16: =U15*U16/2 -> 0 | Y16: =W16*X16 -> 0 | Z16: =Y15*Y16/2 -> 0 | AC16: =AA16*AB16 -> 0 | AD16: =AC15*AC16/2 -> 0 | AG16: =AE16*AF16 -> 0 | AH16: =AG15*AG16/2 -> 0 | AK16: =AI16*AJ16 -> 0 | AL16: =AK15*AK16/2 -> 0 | AM16: =L18+P18+T18+X18+AB18+AF18+AJ18 -> 2.875 | AO16: ‒ (C) Regardless of the results of the above two group, in case that at least in one sub-matrix of any group there, the level of the operational risk is >=6 and the Ratio of its impact is => Cell A62 (0.75), then alert sign N will appear in the first left column.
A17: | Group | F17: =Bul!A24 -> 0 | G17: =A60 -> 6 | H17: =SUM(H8:H16)/9.3 -> 0 | I17: Area: | J17: =Bul!G23 -> 0 | M17: Area: | N17: =SUM(N8:N16) -> 25.82975 | Q17: Area: | R17: =SUM(R8:R16) -> 0 | U17: Area: | V17: =SUM(V8:V16) -> 0 | Y17: Area: | Z17: =SUM(Z8:Z16) -> 0 | AC17: Area: | AD17: =SUM(AD8:AD16) -> 0 | AG17: Area: | AH17: =SUM(AH8:AH16) -> 0 | AK17: Area: | AL17: =SUM(AL8:AL16) -> 0 | AM17: =IF(AM7>0,AM18/AM7,0) -> 2.130107527 | AN17: =IF(AM7>0,AN18/AM7,0) -> 0.4873537736
G18: Σ risk factors: | H18: =Bul!C23 -> 0 | I18: Level: | J18: =Bul!G24 -> 0 | L18: =SUM(K8:K16)/8 -> 2.875 | M18: =SUM(M8:M16)/9.3 -> 2.130107527 | N18: =N17/53 -> 0.4873537736 | P18: =SUM(O8:O16)/8 -> 0 | Q18: =SUM(Q8:Q16)/9.3 -> 0 | R18: =R17/53 -> 0 | T18: =SUM(S8:S16)/8 -> 0 | U18: =SUM(U8:U16)/9.3 -> 0 | V18: =V17/53 -> 0 | X18: =SUM(W8:W16)/8 -> 0 | Y18: =SUM(Y8:Y16)/9.3 -> 0 | Z18: =Z17/53 -> 0 | AB18: =SUM(AA8:AA16)/8 -> 0 | AC18: =SUM(AC8:AC16)/9.3 -> 0 | AD18: =AD17/53 -> 0 | AF18: =SUM(AE8:AE16)/8 -> 0 | AG18: =SUM(AG8:AG16)/9.3 -> 0 | AH18: =AH17/53 -> 0 | AJ18: =SUM(AI8:AI16)/8 -> 0 | AK18: =SUM(AK8:AK16)/9.3 -> 0 | AL18: =AL17/53 -> 0 | AM18: =M18+Q18+U18+Y18+AC18+AG18+AK18 -> 2.130107527 | AN18: =N18+R18+V18+Z18+AD18+AH18+AL18 -> 0.4873537736
C19: EXTERNAL | F19: =IF($AN$17>=$A$62,"M","") ->  | AM19: Average È
A20: B | C20: ASSESSORS | F20: Code: | G20: 2009 | I20: =IF(J31>0,IF(AND(A1=1,J31>0),"Risk","Person"),"") ->  | J20: =IF(J31>0,1,0) -> 0 | K20: 2010 | M20: =IF(N31>0,IF(AND(A1=1,N31>0),"Risk","Person"),"") ->  | N20: =IF(N31>0,1,0) -> 0 | O20: 2011 | Q20: =IF(R31>0,IF(AND(A1=1,R31>0),"Risk","Person"),"") ->  | R20: =IF(R31>0,1,0) -> 0 | S20: 2012 | U20: =IF(V31>0,IF(AND(A1=1,V31>0),"Risk","Person"),"") ->  | V20: =IF(V31>0,1,0) -> 0 | W20: 2013 | Y20: =IF(Z31>0,IF(AND(A1=1,V31>0),"Risk","Person"),"") ->  | Z20: =IF(Z31>0,1,0) -> 0 | AA20: 2014 | AC20: =IF(AD31>0,IF(AND(A1=1,AD31>0),"Risk","Person"),"") ->  | AD20: =IF(AD31>0,1,0) -> 0 | AE20: 2015 | AG20: =IF(AH31>0,IF(AND(A1=1,AH31>0),"Risk","Person"),"") ->  | AH20: =IF(AH31>0,1,0) -> 0 | AI20: 2016 | AK20: =IF(AL31>0,IF(AND(A1=1,AL31>0),"Risk","Person"),"") ->  | AL20: =IF(AL31>0,1,0) -> 0 | AM20: =J20+N20+R20+V20+Z20+AD20+AH20+AL20 -> 0 | AO20: ● INSIDE EXPERTS complete the scores of risk in the operating matrix (Sheet Bul) with assistance of external (our) assessor in the Group A's sub-matrices. If ¬ appears , then appoint exter-nal assessors. They complete Group B's sub-matrices. If ¬ appears again, that confirms the availability of high risk, and then appoint independent auditors―Group C's sub-matrices.
A21: l | B21: 0 | C21: Lenders Capital Risk | H21: =F21*G21 -> 0 | I21: l | J21: =H21*H22/2 -> 0 | M21: =K21*L21 -> 0 | N21: =M21*M22/2 -> 0 | Q21: =O21*P21 -> 0 | R21: =Q21*Q22/2 -> 0 | U21: =S21*T21 -> 0 | V21: =U21*U22/2 -> 0 | Y21: =W21*X21 -> 0 | Z21: =Y21*Y22/2 -> 0 | AC21: =AA21*AB21 -> 0 | AD21: =AC21*AC22/2 -> 0 | AK21: =AI21*AJ21 -> 0 | AL21: =AK21*AK22/2 -> 0
A22: d | B22: 0 | C22: Default Risk | H22: =F22*G22 -> 0 | I22: d | J22: =H22*H23/2 -> 0 | M22: =K22*L22 -> 0 | N22: =M22*M23/2 -> 0 | Q22: =O22*P22 -> 0 | R22: =Q22*Q23/2 -> 0 | U22: =S22*T22 -> 0 | V22: =U22*U23/2 -> 0 | Y22: =W22*X22 -> 0 | Z22: =Y22*Y23/2 -> 0 | AC22: =AA22*AB22 -> 0 | AD22: =AC22*AC23/2 -> 0 | AK22: =AI22*AJ22 -> 0 | AL22: =AK22*AK23/2 -> 0
A23: e | B23: 0 | C23: Economic Risk | H23: =F23*G23 -> 0 | I23: e | J23: =H24*H23/2 -> 0 | M23: =K23*L23 -> 0 | N23: =M24*M23/2 -> 0 | Q23: =O23*P23 -> 0 | R23: =Q24*Q23/2 -> 0 | U23: =S23*T23 -> 0 | V23: =U24*U23/2 -> 0 | Y23: =W23*X23 -> 0 | Z23: =Y24*Y23/2 -> 0 | AC23: =AA23*AB23 -> 0 | AD23: =AC24*AC23/2 -> 0 | AK23: =AI23*AJ23 -> 0 | AL23: =AK24*AK23/2 -> 0
A24: c | B24: 6 | C24: Currency Risk | H24: =F24*G24 -> 0 | I24: c | J24: =H21*H24/2 -> 0 | M24: =K24*L24 -> 0 | N24: =M21*M24/2 -> 0 | Q24: =O24*P24 -> 0 | R24: =Q21*Q24/2 -> 0 | U24: =S24*T24 -> 0 | V24: =U21*U24/2 -> 0 | Y24: =X21*X23 -> 0 | Z24: =Y21*Y24/2 -> 0 | AC24: =AA24*AB24 -> 0 | AD24: =AC21*AC24/2 -> 0 | AK24: =AI24*AJ24 -> 0 | AL24: =AK21*AK24/2 -> 0 | AN24: ←Average
A26: i | C26: Interest Rate Risk | H26: =F26*G26 -> 0 | I26: i | J26: =H26*H27/2 -> 0 | M26: =K26*L26 -> 0 | N26: =M26*M27/2 -> 0 | Q26: =O26*P26 -> 0 | R26: =Q26*Q27/2 -> 0 | U26: =S26*T26 -> 0 | V26: =U26*U27/2 -> 0 | Y26: =W26*X26 -> 0 | Z26: =Y26*Y27/2 -> 0 | AC26: =AA26*AB26 -> 0 | AD26: =AC26*AC27/2 -> 0 | AK26: =AI26*AJ26 -> 0 | AL26: =AK26*AK27/2 -> 0
A27: p | C27: Political Risk | H27: =F27*G27 -> 0 | I27: p | J27: =H27*H28/2 -> 0 | M27: =K27*L27 -> 0 | N27: =M27*M28/2 -> 0 | Q27: =O27*P27 -> 0 | R27: =Q27*Q28/2 -> 0 | U27: =S27*T27 -> 0 | V27: =U27*U28/2 -> 0 | Y27: =W27*X27 -> 0 | Z27: =Y27*Y28/2 -> 0 | AC27: =AA27*AB27 -> 0 | AD27: =AC27*AC28/2 -> 0 | AK27: =AI27*AJ27 -> 0 | AL27: =AK27*AK28/2 -> 0 | AM27: Σo | AN27: =H27+M27+Q27+U27+Y27+AC27+AG27+AK27 -> 0 | AO27: ● The appearing of alert ¬ indicates that the PT assessment is achieved the critical value or above it. N in the row of the operational risk at any group means that making PT's INDEPEN-DENT EVALUATION is strictly recommended.
A28: b | C28: Reputation Risk | E28: =IF(OR($M$16>=A60,$Q$16,$U$16>=A60,$Y$16>=A60,$AC$16>=A60,$AG$16>=A60,AK27>=A60),"N","") -> N | H28: =F28*G28 -> 0 | I28: b | J28: =H29*H26/2 -> 0 | M28: =K28*L28 -> 0 | N28: =M29*M26/2 -> 0 | Q28: =O28*P28 -> 0 | R28: =Q29*Q26/2 -> 0 | U28: =S28*T28 -> 0 | V28: =U29*U26/2 -> 0 | Y28: =W28*X28 -> 0 | Z28: =Y29*Y26/2 -> 0 | AC28: =AA28*AB28 -> 0 | AD28: =AC29*AC26/2 -> 0 | AK28: =AI28*AJ28 -> 0 | AL28: =AK29*AK26/2 -> 0 | AM28: =IF(AM20>0,AM29/AM20,0) -> 0 | AN28: =IF(AM20>0,AN27/AM20,0) -> 0
A29: o | C29: Operational Risk | H29: =F29*G29 -> 0 | I29: o | J29: =H29*H28/2 -> 0 | M29: =K29*L29 -> 0 | N29: =M28*M29/2 -> 0 | Q29: =O29*P29 -> 0 | R29: =Q28*Q29/2 -> 0 | U29: =S29*T29 -> 0 | V29: =U28*U29/2 -> 0 | Y29: =W29*X29 -> 0 | Z29: =Y28*Y29/2 -> 0 | AC29: =AA29*AB29 -> 0 | AD29: =AC28*AC29/2 -> 0 | AK29: =AI29*AJ29 -> 0 | AL29: =AK28*AK29/2 -> 0 | AM29: =G31+L31+P31+T31+X31+AB31+AF31+AJ31 -> 0
A30: | Group | C30: Russian Boss | F30: =IF(OR($A$62<=$J$31,$A$62<=$N$31,$A$62<=$R$31,$A$62<=$V$31,$A$62<=$Z$31,$A$62<=$AD$31,$A$62<=$AH$31,$A$62<=$AL$31),"¬","") ->  | I30: Area: | J30: =SUM(J21:J29) -> 0 | M30: Area: | N30: =SUM(N21:N29) -> 0 | Q30: Area: | R30: =SUM(R21:R29) -> 0 | U30: Area: | V30: =SUM(V21:V29) -> 0 | Y30: Area: | Z30: =SUM(Z21:Z29) -> 0 | AC30: Area: | AD30: =SUM(AD21:AD29) -> 0 | AG30: Area: | AH30: =SUM(AH21:AH29) -> 0 | AK30: Area: | AL30: =SUM(AL21:AL29) -> 0 | AM30: =IF(AM20>0,AM31/AM20,0) -> 0 | AN30: =IF(AM20>0,AN31/AM20,0) -> 0
G31: =SUM(F21:F29)/8 -> 0 | H31: =SUM(H21:H29)/9.3 -> 0 | I31: Level: | J31: =J30/53 -> 0 | L31: =SUM(K21:K29)/8 -> 0 | M31: =SUM(M21:M29)/12 -> 0 | N31: =N30/53 -> 0 | P31: =SUM(O21:O29)/8 -> 0 | Q31: =SUM(Q21:Q29)/12 -> 0 | R31: =R30/53 -> 0 | T31: =SUM(S21:S29)/12 -> 0 | U31: =SUM(U21:U29)/12 -> 0 | V31: =V30/53 -> 0 | X31: =SUM(W21:W29)/8 -> 0 | Y31: =SUM(Y21:Y29)/12 -> 0 | Z31: =Z30/53 -> 0 | AB31: =SUM(AA21:AA29)/12 -> 0 | AC31: =SUM(AC21:AC29)/12 -> 0 | AD31: =AD30/53 -> 0 | AF31: =SUM(AE21:AE29)/8 -> 0 | AG31: =SUM(AG21:AG29)/12 -> 0 | AH31: =AH30/53 -> 0 | AJ31: =SUM(AI21:AI29)/12 -> 0 | AK31: =SUM(AK21:AK29)/12 -> 0 | AL31: =AL30/53 -> 0 | AM31: =H31+M31+Q31+U31+Y31+AC31+AG31+AK31 -> 0 | AN31: =J31+N31+R31+V31+Z31+AD31+AH31+AL31 -> 0 | AO31: ● The first step of the transmission from assessment to risk management is correction of a not financial - operational risk (о) on Cell H14 - of the total matrix of eight factors by replacing it with the total value of the assessment of the manager's PT in logical reasonably necessary (see the content of Cell H14).
C32: INDEPENDENT EVALUATION | AM32: Average È
A33: C | F33: Code: | G33: 3017 | I33: =IF(J44>0,IF(A1=1,"Risk","Person"),"") ->  | J33: =IF(J44>0,1,0) -> 0 | K33: 3018 | M33: =IF(N44>0,IF(AND(A1=1,N44>0),"Risk","Person"),"") ->  | N33: =IF(N44>0,1,0) -> 0 | O33: 3019 | Q33: =IF(R44>0,IF(AND(A1=1,R44>0),"Risk","Person"),"") ->  | R33: =IF(R44>0,1,0) -> 0 | S33: 3020 | U33: =IF(V44>0,IF(AND(A1=1,V44>0),"Risk","Person"),"") ->  | V33: =IF(V44>0,1,0) -> 0 | W33: 3021 | Y33: =IF(Z44>0,IF(AND(A1=1,Z44>0),"Risk","Person"),"") ->  | Z33: =IF(Z44>0,1,0) -> 0 | AA33: 3022 | AC33: =IF(AD44>0,IF(AND(A1=1,AD44>0),"Risk","Person"),"") ->  | AD33: =IF(AD44>0,1,0) -> 0 | AE33: 3023 | AG33: =IF(AH44>0,IF(AND(A1=1,AH44>0),"Risk","Person"),"") ->  | AH33: =IF(AH44>0,1,0) -> 0 | AI33: 3024 | AK33: =IF(AL44>0,IF(AND(A1=1,AL44>0),"Risk","Person"),"") ->  | AL33: =IF(AL44>0,1,0) -> 0 | AM33: =J33+N33+R33+V33+Z33+AD33+AH33+AL33 -> 0
A34: l | C34: Lenders Capital Risk | H34: =F34*G34 -> 0 | I34: l | J34: =H34*H35/2 -> 0 | M34: =K34*L34 -> 0 | N34: =M34*M35/2 -> 0 | Q34: =O34*P34 -> 0 | R34: =Q34*Q35/2 -> 0 | U34: =S34*T34 -> 0 | V34: =U34*U35/2 -> 0 | Y34: =W34*X34 -> 0 | Z34: =Y34*Y35/2 -> 0 | AC34: =AA34*AB34 -> 0 | AD34: =AC34*AC35/2 -> 0 | AG34: =AE34*AF34 -> 0 | AH34: =AG34*AG35/2 -> 0 | AK34: =AI34*AJ34 -> 0 | AL34: =AK34*AK35/2 -> 0
A35: d | C35: Default Risk | H35: =F35*G35 -> 0 | I35: d | J35: =H35*H36/2 -> 0 | M35: =K35*L35 -> 0 | N35: =M35*M36/2 -> 0 | Q35: =O35*P35 -> 0 | R35: =Q35*Q36/2 -> 0 | U35: =S35*T35 -> 0 | V35: =U35*U36/2 -> 0 | Y35: =W35*X35 -> 0 | Z35: =Y35*Y36/2 -> 0 | AC35: =AA35*AB35 -> 0 | AD35: =AC35*AC36/2 -> 0 | AG35: =AE35*AF35 -> 0 | AH35: =AG35*AG36/2 -> 0 | AK35: =AI35*AJ35 -> 0 | AL35: =AK35*AK36/2 -> 0
A36: e | C36: Economic Risk | H36: =F36*G36 -> 0 | I36: e | J36: =H37*H36/2 -> 0 | M36: =K36*L36 -> 0 | N36: =M37*M36/2 -> 0 | Q36: =O36*P36 -> 0 | R36: =Q37*Q36/2 -> 0 | U36: =S36*T36 -> 0 | V36: =U37*U36/2 -> 0 | Y36: =W36*X36 -> 0 | Z36: =Y37*Y36/2 -> 0 | AC36: =AA36*AB36 -> 0 | AD36: =AC37*AC36/2 -> 0 | AG36: =AE36*AF36 -> 0 | AH36: =AG37*AG36/2 -> 0 | AK36: =AI36*AJ36 -> 0 | AL36: =AK37*AK36/2 -> 0 | AO36: ● In addition to the specific staining in the tables of this text,
A37: c | C37: Currency Risk | H37: 0 | I37: c | J37: =H34*H37/2 -> 0 | M37: =K37*L37 -> 0 | N37: =M34*M37/2 -> 0 | Q37: 0 | R37: =Q34*Q37/2 -> 0 | U37: =S37*T37 -> 0 | V37: =U34*U37/2 -> 0 | Y37: 0 | Z37: =Y34*Y37/2 -> 0 | AC37: =AA37*AB37 -> 0 | AD37: =AC34*AC37/2 -> 0 | AG37: 0 | AH37: =AG34*AG37/2 -> 0 | AK37: =AI37*AJ37 -> 0 | AL37: =AK34*AK37/2 -> 0 | AO37: ● traffic lights and the time of its changes ssuggest the
AO38: ● operator need for adjustment of operational risk through
A39: i | C39: Interest Rate Risk | H39: 0 | I39: i | J39: =H39*H40/2 -> 0 | M39: =K39*L39 -> 0 | N39: =M39*M40/2 -> 0 | Q39: 0 | R39: =Q39*Q40/2 -> 0 | U39: =S39*T39 -> 0 | V39: =U39*U40/2 -> 0 | Y39: 0 | Z39: =Y39*Y40/2 -> 0 | AC39: =AA39*AB39 -> 0 | AD39: =AC39*AC40/2 -> 0 | AG39: 0 | AH39: =AG39*AG40/2 -> 0 | AK39: =AI39*AJ39 -> 0 | AL39: =AK39*AK40/2 -> 0 | AO39: personality assessment of the manager.
A40: p | C40: Political Risk | H40: 0 | I40: p | J40: =H40*H41/2 -> 0 | M40: =K40*L40 -> 0 | N40: =M41*M40/2 -> 0 | Q40: 0 | R40: =Q40*Q41/2 -> 0 | U40: =S40*T40 -> 0 | V40: =U41*U40/2 -> 0 | Y40: 0 | Z40: =Y40*Y41/2 -> 0 | AC40: =AA40*AB40 -> 0 | AD40: =AC41*AC40/2 -> 0 | AG40: 0 | AH40: =AG40*AG41/2 -> 0 | AK40: =AI40*AJ40 -> 0 | AL40: =AK41*AK40/2 -> 0 | AM40: Σo | AN40: =H40+M40+Q40+U40+Y40+AC40+AG40+AK40 -> 0 | AO40: PERSONALITY ASSESSMENT
A41: b | C41: Reputation Risk | E41: =IF(OR($M$14>=A60,$Q$14,$U$14>=A60,$Y$14>=A60,$AC$14>=A60,$AG$14>=A60,AK40>=A60),"N","") ->  | H41: =F41*G41 -> 0 | I41: b | J41: =H42*H34/2 -> 0 | M41: =K41*L41 -> 0 | N41: =M39*M42/2 -> 0 | Q41: =O41*P41 -> 0 | R41: =Q42*Q39/2 -> 0 | U41: =S41*T41 -> 0 | V41: =U39*U42/2 -> 0 | Y41: =W41*X41 -> 0 | Z41: =Y42*Y39/2 -> 0 | AC41: =AA41*AB41 -> 0 | AD41: =AC39*AC42/2 -> 0 | AG41: =AF42*AF39/2 -> 0 | AH41: =AG39*AG42/2 -> 0 | AK41: =AJ39*AJ42/2 -> 0 | AL41: 0 | AM41: =IF(AM33>0,AM42/AM33,0) -> 0 | AN41: =IF(AM33>0,AN40/AM33,0) -> 0 | AV41: The visualization of the stages of transition from
A42: o | C42: Operational Risk | H42: =F42*G42 -> 0 | I42: o | J42: =H42*H41/2 -> 0 | M42: =K42*L42 -> 0 | N42: =M41*M42/2 -> 0 | Q42: =O42*P42 -> 0 | R42: =Q41*Q42/2 -> 0 | U42: =S42*T42 -> 0 | V42: =U41*U42/2 -> 0 | Y42: =W42*X42 -> 0 | Z42: =Y41*Y42/2 -> 0 | AC42: =AA42*AB42 -> 0 | AD42: =AC41*AC42/2 -> 0 | AG42: =AF41*AF42/2 -> 0 | AH42: =AG41*AG42/2 -> 0 | AK42: =AJ41*AJ42/2 -> 0 | AL42: =AK41*AK42/2 -> 0 | AM42: =G44+L44+P44+T44+X44+AB44+AF44+AJ44 -> 0 | AV42: risk assessment to management through
A43: Ø | B43: =IF(AND(A1=1,F14*G14>A60,AM46=0),"In this case the expertise of Group D for personality traits is not required.","YOU NEED QUALIFIED AUDIT GROUP TO ADD CREDIBILITY TO YOUR FINAL RISK ASSESSMENT") -> YOU NEED QUALIFIED AUDIT GROUP TO ADD CREDIBILITY TO YOUR FINAL RISK ASSESSMENT | F43: =IF(OR($A$60<=$J$44,$A$60<=$N$44,$A$60<=$R$44,$A$60<=$V$44,$A$60<=$Z$44,$A$60<=$AD$44,$A$60<=$AH$44,$A$60<=$AL$44),"¬","") ->  | H43: =SUM(H34:H42) -> 0 | I43: Area: | J43: =SUM(J34:J42) -> 0 | M43: Area: | N43: =SUM(N34:N42) -> 0 | Q43: Area: | R43: =SUM(R34:R42) -> 0 | U43: Area: | V43: =SUM(V34:V42) -> 0 | Y43: Area: | Z43: =SUM(Z34:Z42) -> 0 | AC43: Area: | AD43: =SUM(AD34:AD42) -> 0 | AG43: Area: | AH43: =SUM(AH34:AH42) -> 0 | AK43: Area: | AL43: =SUM(AL34:AL42) -> 0 | AM43: =IF(AM33>0,AM44/AM33,0) -> 0 | AN43: =IF(AM33>0,AN44/AM33,0) -> 0 | AP43: Up to | AV43: personal assessment of the manager
A44: | Group | G44: =SUM(F34:F42)/8 -> 0 | H44: =SUM(H34:H42)/10 -> 0 | I44: Level: | J44: =J43/53 -> 0 | L44: =SUM(K34:K42)/8 -> 0 | M44: =SUM(M34:M42)/10 -> 0 | N44: =N43/53 -> 0 | P44: =SUM(O34:O42)/8 -> 0 | Q44: =SUM(Q34:Q42)/10 -> 0 | R44: =R43/53 -> 0 | T44: =SUM(S34:S42)/8 -> 0 | U44: =SUM(U34:U42)/10 -> 0 | V44: =V43/53 -> 0 | X44: =SUM(W34:W42)/8 -> 0 | Y44: =SUM(Y34:Y42)/10 -> 0 | Z44: =Z43/53 -> 0 | AB44: =SUM(AA34:AA42)/8 -> 0 | AC44: =SUM(AC34:AC42)/10 -> 0 | AD44: =AD43/53 -> 0 | AF44: =SUM(AE34:AE42)/8 -> 0 | AG44: =SUM(AG34:AG42)/10 -> 0 | AH44: =AH43/53 -> 0 | AJ44: =SUM(AI34:AI42)/8 -> 0 | AK44: =SUM(AK34:AK42)/10 -> 0 | AL44: =AL43/53 -> 0 | AM44: =H44+M44+Q44+U44+Y44+AC44+AG44+AK44 -> 0 | AN44: =J44+N44+R44+V44+Z44+AD44+AH44+AL44 -> 0 | AP44: 0.5 | AV44: increases the efficiency of the
AM45: Σ: | AN45: =AM17+AM30+AM41 -> 2.130107527 | AP45: impact over the assessment | AV45: entire expertise .
A46: D | C46: PERSONALITY TRAITS | F46: Code: | G46: 4025 | I46: =IF(J57>0,"Person","") ->  | J46: =IF(J57>0,1,0) -> 0 | K46: 4026 | M46: =IF(N57>0,"Person","") ->  | N46: =IF(N57>0,1,0) -> 0 | O46: 4027 | Q46: =IF(R57>0,"Person","") ->  | R46: =IF(R57>0,1,0) -> 0 | S46: 4028 | U46: =IF(V57>0,"Person","") ->  | V46: =IF(V57>0,1,0) -> 0 | W46: 4029 | Y46: =IF(Z57>0,"Person","") ->  | Z46: =IF(Z57>0,1,0) -> 0 | AA46: 4030 | AC46: =IF(AD57>0,"Person","") ->  | AD46: =IF(AD57>0,1,0) -> 0 | AE46: 4031 | AG46: =IF(AH57>0,"Person","") ->  | AH46: =IF(AH57>0,1,0) -> 0 | AI46: 4032 | AK46: =IF(AL57>0,"Person","None") -> None | AL46: =IF(AL57>0,1,0) -> 0 | AM46: =J46+N46+R46+V46+Z46+AD46+AH46+AL46 -> 0 | AN46: =AN17+AN30+AN43 -> 0.4873537736
A47: l | C47: Lenders’ Capital Risk | H47: =F47*G47 -> 0 | I47: l | J47: =H47*H48/2 -> 0 | M47: =K47*L47 -> 0 | N47: =L47*L48/2 -> 0 | Q47: =O47*P47 -> 0 | R47: =P47*P48/2 -> 0 | U47: =S47*T47 -> 0 | V47: =T47*T48/2 -> 0 | Y47: =W47*X47 -> 0 | Z47: =X47*X48/2 -> 0 | AC47: =AA47*AB47 -> 0 | AD47: =AB47*AB48/2 -> 0 | AG47: =AE47*AF47 -> 0 | AH47: =AF47*AF48/2 -> 0 | AK47: =AI47*AJ47 -> 0 | AL47: =AJ47*AJ48/2 -> 0 | AM47: Σo = | AN47: =IF(AND(AN15>0,AN28>0,AN41>0),(AN15+AN28+AN41)/3,(AN15+AN28)/2) -> 0.5 | AP47: assessment
A48: d | C48: Default Risk | H48: =F48*G48 -> 0 | I48: d | J48: =H48*H49/2 -> 0 | M48: =K48*L48 -> 0 | N48: =L48*L49/2 -> 0 | Q48: =O48*P48 -> 0 | R48: =P48*P49/2 -> 0 | U48: =S48*T48 -> 0 | V48: =T48*T49/2 -> 0 | Y48: =W48*X48 -> 0 | Z48: =X48*X49/2 -> 0 | AC48: =AA48*AB48 -> 0 | AD48: =AB48*AB49/2 -> 0 | AG48: =AE48*AF48 -> 0 | AH48: =AF48*AF49/2 -> 0 | AK48: =AI48*AJ48 -> 0 | AL48: =AJ48*AJ49/2 -> 0 | AN48: =AM15+AM29+AM41 -> 2.875 | AO48: SIMULATION MODEL | AT48: PERSONALITY TRAITS
A49: e | C49: Economic Risk | H49: =F49*G49 -> 0 | I49: e | J49: =H50*H49/2 -> 0 | M49: =K49*L49 -> 0 | N49: =L50*L49/2 -> 0 | Q49: =O49*P49 -> 0 | R49: =P50*P49/2 -> 0 | U49: =S49*T49 -> 0 | V49: =T50*T49/2 -> 0 | Y49: =W49*X49 -> 0 | Z49: =X50*X49/2 -> 0 | AC49: =AA49*AB49 -> 0 | AD49: =AB50*AB49/2 -> 0 | AG49: =AE49*AF49 -> 0 | AH49: =AF50*AF49/2 -> 0 | AK49: =AI49*AJ49 -> 0 | AL49: =AJ50*AJ49/2 -> 0 | AN49: =IF(AN46>0,AU44*10/AN46,1) -> 0
A50: c | C50: Currency Risk | H50: =F50*G50 -> 0 | I50: c | J50: =H47*H50/2 -> 0 | M50: =K50*L50 -> 0 | N50: =L47*L50/2 -> 0 | Q50: =O50*P50 -> 0 | R50: =P47*P50/2 -> 0 | U50: =S50*T50 -> 0 | V50: =T47*T50/2 -> 0 | Y50: =W50*X50 -> 0 | Z50: =X47*X50/2 -> 0 | AC50: =AA50*AB50 -> 0 | AD50: =AB47*AB50/2 -> 0 | AG50: =AE50*AF50 -> 0 | AH50: =AF47*AF50/2 -> 0 | AK50: =AI50*AJ50 -> 0 | AL50: =AJ47*AJ50/2 -> 0 | AN50: =AN49*AM58/10 -> 0
AN51: =AN54 -> 22
A52: i | C52: Interest Rate Risk | H52: =F52*G52 -> 0 | I52: i | J52: =H52*H53/2 -> 0 | M52: =K52*L52 -> 0 | N52: =L52*L53/2 -> 0 | Q52: =O52*P52 -> 0 | R52: =P52*P53/2 -> 0 | U52: =S52*T52 -> 0 | V52: =T52*T53/2 -> 0 | Y52: =W52*X52 -> 0 | Z52: =X52*X53/2 -> 0 | AC52: =AA52*AB52 -> 0 | AD52: =AB52*AB53/2 -> 0 | AG52: =AE52*AF52 -> 0 | AH52: =AF52*AF53/2 -> 0 | AK52: =AI52*AJ52 -> 0 | AL52: =AJ52*AJ53/2 -> 0 | AN52: =IF(AN51<1,AN50*(1-((AN51-1)^2)),AN50*(1+((1-AN51)^2))) -> 0
A53: o | C53: Operational Risk | H53: =F53*G53 -> 0 | I53: p | J53: =H53*H54/2 -> 0 | M53: =K53*L53 -> 0 | N53: =L53*L54/2 -> 0 | Q53: =O53*P53 -> 0 | R53: =P53*P54/2 -> 0 | U53: =S53*T53 -> 0 | V53: =T53*T54/2 -> 0 | Y53: =W53*X53 -> 0 | Z53: =X53*X54/2 -> 0 | AC53: =AA53*AB53 -> 0 | AD53: =AB53*AB54/2 -> 0 | AG53: =AE53*AF53 -> 0 | AH53: =AF53*AF54/2 -> 0 | AK53: =AI53*AJ53 -> 0 | AL53: =AJ53*AJ54/2 -> 0 | AN53: =AN49*AN58*0.1 -> 0
A54: p | C54: Political Risk | H54: =F54*G54 -> 0 | I54: b | J54: =H55*H54/2 -> 0 | M54: =K54*L54 -> 0 | N54: =L55*L54/2 -> 0 | Q54: =O54*P54 -> 0 | R54: =P55*P54/2 -> 0 | U54: =S54*T54 -> 0 | V54: =T55*T54/2 -> 0 | Y54: =W54*X54 -> 0 | Z54: =X55*X54/2 -> 0 | AC54: =AA54*AB54 -> 0 | AD54: =AB55*AB54/2 -> 0 | AG54: =AE54*AF54 -> 0 | AH54: =AF55*AF54/2 -> 0 | AK54: =AI54*AJ54 -> 0 | AL54: =AJ55*AJ54/2 -> 0 | AM54: > | AN54: 22
A55: b | C55: Liquidity Risk | H55: =F55*G55 -> 0 | I55: o | J55: =H55*H52/2 -> 0 | M55: =K55*L55 -> 0 | N55: =L55*L52/2 -> 0 | Q55: =O55*P55 -> 0 | R55: =P55*P52/2 -> 0 | U55: =S55*T55 -> 0 | V55: =T55*T52/2 -> 0 | Y55: =W55*X55 -> 0 | Z55: =X55*X52/2 -> 0 | AC55: =AA55*AB55 -> 0 | AD55: =AB55*AB52/2 -> 0 | AG55: =AE55*AF55 -> 0 | AH55: =AF55*AF52/2 -> 0 | AK55: =AI55*AJ55 -> 0 | AL55: =AJ55*AJ52/2 -> 0 | AN55: 3
I56: Area: | J56: =SUM(J47:J55) -> 0 | AK56: =SUM(AK47:AK55) -> 0 | AL56: =SUM(AL47:AL55) -> 0 | AN56: =G57+L57+P57+T57+X57+AB57+AF57+AJ57 -> 0
E57: =IF(OR($A$60<=$J$57,$A$60<=$N$57,$A$60<=$R$57,$A$60<=$V$57,$A$60<=$Z$57,$A$60<=$AD$57,$A$60<=$AH$57,$A$60<=$AL$57),"M","") ->  | G57: =SUM(F47:F55)/8 -> 0 | H57: =SUM(H47:H55)/10 -> 0 | I57: Level: | J57: =SUM(J56)/55 -> 0 | K57: =#REF! ->  | L57: =SUM(K47:K55)/8 -> 0 | M57: =SUM(M47:M55)/10 -> 0 | N57: =SUM(N47:N55)/55 -> 0 | O57: =IF(OR(P47>P51*$A$60,P48>P51*$A$60,P49>P51*$A$60,P50>P51*$A$60,P52>P51*$A$60,P53>P51*$A$60,P54>P51*$A$60,P55>P51*$A$622),"M","") ->  | P57: =SUM(O47:O55)/8 -> 0 | Q57: =SUM(Q47:Q55)/10 -> 0 | R57: =SUM(R47:R55)/55 -> 0 | S57: =IF(OR(T47>T51*$A$60,T48>T51*$A$60,T49>T51*$A$60,T50>T51*$A$60,T52>T51*$A$60,T53>T51*$A$60,T54>T51*$A$60,T55>T51*$A$60),"M","") ->  | T57: =SUM(S47:S55)/8 -> 0 | U57: =SUM(U47:U55)/10 -> 0 | V57: =SUM(V47:V55)/55 -> 0 | W57: =IF(OR(X47>X51*$A$60,X48>X51*$A$60,X49>X51*$A$60,X50>X51*$A$60,X52>X51*$A$60,X53>X51*$A$60,X54>X51*$A$60,X55>X51*$A$60),"M","") ->  | X57: =SUM(W47:W55)/8 -> 0 | Y57: =SUM(Y47:Y55)/10 -> 0 | Z57: =SUM(Z47:Z55)/55 -> 0 | AA57: =IF(OR(AB47>AB51*$A$60,AB48>AB51*$A$60,AB49>AB51*$A$60,AB50>AB51*$A$60,AB52>AB51*$A$60,AB53>AB51*$A$60,AB54>AB51*$A$60,AB55>AB51*$A$60),"M","") ->  | AB57: =SUM(AA47:AA55)/8 -> 0 | AC57: =SUM(AC47:AC55)/10 -> 0 | AD57: =SUM(AD47:AD55)/55 -> 0 | AE57: =IF(OR(AF47>AF51*$A$60,AF48>AF51*$A$60,AF49>AF51*$A$60,AF50>AF51*$A$60,AF52>AF51*$A$60,AF53>AF51*$A$60,AF54>AF51*$A$60,AF55>AF51*$A$60),"M","") ->  | AF57: =SUM(AE47:AE55)/8 -> 0 | AG57: =SUM(AG47:AG55)/10 -> 0 | AH57: =SUM(AH47:AH55)/55 -> 0 | AI57: =IF(OR(AJ47>AJ51*$A$60,AJ48>AJ51*$A$60,AJ49>AJ51*$A$60,AJ50>AJ51*$A$60,AJ52>AJ51*$A$60,AJ53>AJ51*$A$60,AJ54>AJ51*$A$60,AJ55>AJ51*$A$60),"M","") ->  | AJ57: =SUM(AI47:AI55)/8 -> 0 | AK57: =SUM(AK47:AK55)/10 -> 0 | AL57: =SUM(AL47:AL55)/55 -> 0 | AM57: =H57+M57+Q57+U57+Y57+AC57+AG57+AK57 -> 0 | AN57: =J57+N57+R57+V57+Z57+AD57+AH57+AL57 -> 0
H58: ❶ | J58: ❷ | AL58: Σ PERSONALITY: | AM58: =IF($AM$46>0,AM57/$AM$46,0) -> 0 | AN58: =IF($AM$46>0,AN57/$AM$46,0) -> 0
C59: Computed TOTAL level of the risks is the average assessment of the sum of all expertises divided to the number of experts, stored in the bove sub-matrix. | AI59: =AR59*10 -> 220 | AJ59: =AR59*9 -> 198 | AK59: =AR59*8 -> 176 | AL59: =AR59*7 -> 154 | AM59: =AR59*6 -> 132 | AN59: =AR59*5 -> 110 | AO59: =AR59*4 -> 88 | AP59: =AR59*3 -> 66 | AQ59: =AR59*2 -> 44 | AR59: =AN51 -> 22
A60: 6 | C60: Personality assessment embodies a decision making state with eight compliments ❶ mutually exclusive any impact; and❷ their union which is the entire space (see indications);
C61: thus the model is always applicable for computing probabilities of an event and its compliment.
A62: 6 | B62: 6 | C62: Risk assessment―total critical value of mutually related risk factors, including model of the result of their interdependence over the same predictable events of interest. | AI62: =$AN$50*(1-(AN55-1)^2) -> 0 | AJ62: =$AN$50*(1-(AJ63-1)^2) -> 0 | AK62: =$AN$50*(1-(AK63-1)^2) -> 0 | AL62: =$AN$50*(1-(AL63-1)^2) -> 0 | AM62: =$AN$50*(1-(AM63-1)^2) -> 0 | AN62: =$AN$50*(1+(AN63-1)^2) -> 0 | AO62: =$AN$50*(1+(AO63-1)^2) -> 0 | AP62: =$AN$50*(1+(AP63-1)^2) -> 0 | AQ62: =$AN$50*(1+(AQ63-1)^2) -> 0 | AR62: =$AN$50*(1+(AR63-1)^2) -> 0
AJ63: 0.4 | AK63: 0.6 | AL63: 0.8 | AM63: 1 | AN63: 1.2 | AO63: 1.4 | AP63: 1.6 | AQ63: 1.8 | AR63: 2
AI64: =$AN$50*AN55 -> 0 | AJ64: =$AN$50*AJ63 -> 0 | AK64: =$AN$50*AK63 -> 0 | AL64: =$AN$50*AK63 -> 0 | AM64: 0 | AN64: 0 | AO64: 0 | AP64: 0 | AQ64: 0 | AR64: 0
A65: CONCLUSION. The final goal is achievement of a total assessment of all risk factors, with the impact of the personality in decision making (if any). PT assessment is a corrective of RA.
B67: “Elements tend to be perceived according to an observer’s past experience.”
A68: W | B68:  | C68: See more avout the visual language, widely used in this product

Sheet File
B1: Code | C1: l | D1: d | E1: e | F1: c | G1: i | H1: o | I1: p | J1: l | K1: d | L1: e | M1: c | N1: i | O1: o | P1: p | Q1: l | R1: d | S1: ¬ | T1: Mo-Yr | U1: Risk | V1: ⁺Impact | W1: Level | X1: 0 | Y1: Score | Z1: Ratio | AA1: Back to "Bul"_________ | AD1: 2016-05-06 | AE1: Brief note
A2: 1 | B2: 1002 | C2: 1 | D2: 1 | E2: 1 | F2: 3 | G2: 5 | H2: 1 | I2: 4 | J2: 7 | K2: 0.9 | L2: 1.2 | M2: 0.05 | N2: 1.07 | O2: 0.05 | P2: 1 | Q2: 1.2 | R2: 1.2 | S2: 0 | T2: 2017-09-08T10:47:01 | U2: 2.875 | V2: 2.130107527 | W2: 0.4873537736 | Y2: 1 | Z2: 0.9 | AA2: IIC
A3: 2 | Y3: 1 | Z3: 1.2
A4: 3 | Y4: 1 | Z4: 0.05
A5: 4 | Y5: 3 | Z5: 1.07
A6: 5 | Y6: 5 | Z6: 0.05
A7: 6 | Y7: 1 | Z7: 1
A8: 7 | Y8: 4 | Z8: 1.2
A9: È 1 | B9: Trend ¢ | Y9: 7 | Z9: 1.2
A11: For graphical presentation of the results of 8R study, refer to the Man"Go". To clean the place for next visualization of each risk factor, click the Man"Close".
A12: This tool helps you plan your risk management efforts and manage them over time. It's based on a collection of risk data for all of your processes that can be used for trend reporting, so you can check
W13: the effectiveness of your risk management procedures.
L26: Fix the date of interest
K27: Move back left to 1 only | M27: Move back left to 1 only
... 1 more rows

Sheet Sheet1 (hidden)

Sheet INTRO
C1: USE THE BUTTONS TO GO ON | J1: EIGHTER (8R-PF) QUANTITATIVE RISK ASSESSMENT PROGRAM We employ our own model to rank likelihood and magnitude of event and possible impact | AC1: NOTE. Exceptthe used factors here, characterizing the financial risk, the program is applicable to a wide class of systems - personal traits (here ingrained), etc.
J3: In continual cyclic process of Risk Management this is the first stage following of risk decision making and further control. | AB3: =AB21 -> Use the Button to continue.
I4: 1 | J4: Lenders’ Capital Risk. The risk the investor faces that he or she may lose all or part of the principal amount invested. Investor could be a strategic investor , a hands-on investor , or an Angel Investor .
I6: 2 | J6: Default Risk. The event in which the investors will be unable to make the required payments on their debt obligations. To mitigate the impact of Default Risk, lenders often charge rates of return that correspond the debtor's level of Default Risk.
I8: 3 | J8: Economic Risk is the chance that macroeconomic conditions like weakness in the economy, government regulation or political stability will affect an investment. A uncontrolled factor, just predictable.
I10: 4 | J10: Currency Risk. Affected by changes in exchange rates. This risk increases not linearly with the amount invested, up in
J11: one-off investments. NOTE, its Ratio is more meaningful indicator in the assessment than the scoring on the ordinate.
I12: 5 | J12: Interest Rate Risk. Probability that the market interest rates will rise significantly higher than the interest rate earned on investments. “Agent-based modeling” allows you study what and how can prompt the central bank to raise rates.
I14: 6 | J14: Operational Risk. Probability Impact of factor like loss of demand or crash in training of managerial staff. « Fix the risk profile first—arrising from the people to keep losses within their risk appetite. « Assess the quality of managers' behavior.
I15: 7 | J15: Political Risk. Probability of loss due to political instability in the buyer's country that may result in cancellation of a license or otherwise affect the buyer's ability to make payments. Political risks are insurable risks.
I17: 8 | J17: Liquidity Risk. Probability of loss arising from a situation where (1) there will not be enough cash and/or cash equivalents to meet the needs of depositors and borrowers, (2) sale of illiquid assets will yield less than their fair value, or (3) illiquid assets will not be sold at the desired time due to lack of buyers.
C20: DESCRIPTION OF RISK MATRIX DOUBLE POLAR COORDINATE SYSTEM QUANTITATIVE ASSESSMENT SOFTWARE PROGRAM
AB21: Use the Button to continue.
C22: RISK ASSESSMENT is the first step in the Risk Management procedure. We are not dealing here with Risk Management.
C23: We determine the quantitative value of assymetric risks related to a capital investments through the qualitative values of its hazard Factors.
C24: Each Factorsould digitalize a single auditor's virtual notion about a potential threat with financial loss. The risk factors are quantified using two polar coordinate systems with various risk Ratiosfor the potential loss, and the probability to happen with some impact— Scoringfrom 1 to 10. The loss occurs in a simple double polar coordinate system with 45o rotation relative to one another for better visibility and a uncomplica-ted computing of the total risk, thus to assist the decision making of the managinf staff. | AB24: Use the Button to close the file to protect it from damages.
C25: How to determine the measure, the size of the factor? Risk with a large potential loss and a low probability of occurring is often treated differently from one with a low potential loss and a high likelihood to happen. In theory both are with nearly equal priority. There is no stan- dard format for a risk register. We advocate an outside auditor (like us, you will see the example matrix later) to fix the Ratio of each coordi- nate and to suggest margin (a "from-to" diapason) for each Factor Scoring, without an audit engagement. The internal auditor should perform risk assessment procedures to obtain an understanding of the businessits environment of its entity, including its management (acc. to ISA315). He is to complete the exact figure of the eight Scrolingsonly.
C26: In an early design stage of a business venture often a fail-safe system can be made acceptable by sensitive to the problem master-auditors, individuals only, and a software to read them. For team working the program allows averaging through completion of up to seven matrices (Practice 1 Button). It is not required special or high level of the assessor's PC qualification. This is a opnen-source copmputer program on Basic for Applicatio programming language simple mechanism to increase visibility of risks and assists management decision making to achieve a Best-in-Class performance. This is possible with our Online Cash-flow Control System (OCFCS).
C27: You must have a solid business plan. Apart from the completeness of the financial information, there are required visual design Excel-based spreadsheets, dynamic URLs , color solutions and image suggestions. All these suppose an element of art in making such a business plan.
C28: NOTE. To average risk level from the quantity assessment of a group of auditors and / or a series of periodic assessments and other analytical data throughout walking to the end of the project investment horizon you have to install on your PC this original software.

Sheet List
A1: Back to "Bul" | C1: Clean up Duplicates from time to time (if required)
A2: Name of Operator | B2: Brief annotation - outline of the project
A3: Henry
A4: Russian Boss
A5: IIC
A6: IIC
A7: IIC
A8: IIC
A9: IIC

Sheet practice2
F1: Event's Code: | G1: 2 000 00M | J1: TOTAL LEVEL OF RISK | K1: 2000001 | N1: 2000002 | Q1: =K1+2 -> 2000003 | T1: =N1+2 -> 2000004 | W1: =Q1+2 -> 2000005 | Z1: =T1+2 -> 2000006 | AC1: =W1+2 -> 2000007
G2: < Assessment Scoring
C7: Individual's behaviour | J7: =Practice1!J7 -> 0 | M7: =$J$7 -> 0 | P7: =J7 -> 0 | S7: =$J$7 -> 0 | V7: =J7 -> 0 | Y7: =J7 -> 0 | AB7: =J7 -> 0 | AE7: =J7 -> 0
B8: m | C8: Momentary inferiority | F8: 0.7 | G8: 7 | H8: =F8*G8 -> 4.9 | I8: Δ | J8: =H8*H9/2 -> 6.125 | L8: =F8*K8 -> 0 | M8: =K8*K9/2 -> 0 | O8: =F8*N8 -> 0 | P8: =N8*N9/2 -> 0 | R8: =F8*Q8 -> 0 | S8: =Q8*Q9/2 -> 0 | U8: =F8*T8 -> 0 | V8: =T8*T9/2 -> 0 | X8: =F8*W8 -> 0 | Y8: =W8*W9/2 -> 0 | AA8: =F8*Z8 -> 0 | AB8: =Z8*Z9/2 -> 0 | AD8: =F8*AC8 -> 0 | AE8: =AC8*AC9/2 -> 0
B9: e | C9: Insincerе exprs. of simpathy | F9: 0.5 | G9: 5 | H9: =F9*G9 -> 2.5 | I9: eon | J9: =H9*H10/2 -> 3.75 | L9: =F9*K9 -> 0 | M9: =K9*K10/2 -> 0 | O9: =F9*N9 -> 0 | P9: =N9*N10/2 -> 0 | R9: =F9*Q9 -> 0 | S9: =Q9*Q10/2 -> 0 | U9: =F9*T9 -> 0 | V9: =T9*T10/2 -> 0 | X9: =F9*W9 -> 0 | Y9: =W9*W10/2 -> 0 | AA9: =F9*Z9 -> 0 | AB9: =Z9*Z10/2 -> 0 | AD9: =F9*AC9 -> 0 | AE9: =AC9*AC10/2 -> 0
B10: n | C10: Negativism | F10: 1 | G10: 3 | H10: 3 | I10: ion | J10: =H11*H10/2 -> 18.9 | L10: =F10*K10 -> 0 | M10: =K11*K10/2 -> 0 | O10: =F10*N10 -> 0 | P10: =N11*N10/2 -> 0 | R10: =F10*Q10 -> 0 | S10: =Q11*Q10/2 -> 0 | U10: =F10*T10 -> 0 | V10: =T11*T10/2 -> 0 | X10: =F10*W10 -> 0 | Y10: =W11*W10/2 -> 0 | AA10: =F10*Z10 -> 0 | AB10: =Z11*Z10/2 -> 0 | AD10: =F10*AC10 -> 0 | AE10: =AC11*AC10/2 -> 0
B11: i | C11: Increase importance | F11: 1.4 | G11: 9 | H11: 12.6 | I11: moi | J11: =H8*H11/2 -> 30.87 | L11: =F11*K11 -> 0 | M11: =K8*K11/2 -> 0 | O11: =F11*N11 -> 0 | P11: =N8*N11/2 -> 0 | R11: =F11*Q11 -> 0 | S11: =Q8*Q11/2 -> 0 | U11: =F11*T11 -> 0 | V11: =T8*T11/2 -> 0 | X11: =F11*W11 -> 0 | Y11: =W8*W11/2 -> 0 | AA11: =F11*Z11 -> 0 | AB11: =Z8*Z11/2 -> 0 | AD11: =F11*AC11 -> 0 | AE11: =AC8*AC11/2 -> 0
I12: subΣ: | J12: =SUM(J8:J11) -> 59.645 | L12: subΣ: | M12: =SUM(M8:M11) -> 0 | O12: subΣ: | P12: =SUM(P8:P11) -> 0 | S12: =SUM(S8:S11) -> 0 | U12: subΣ: | V12: =SUM(V8:V11) -> 0 | X12: subΣ: | Y12: =SUM(Y8:Y11) -> 0 | AA12: subΣ: | AB12: =SUM(AB8:AB11) -> 0 | AD12: subΣ: | AE12: =SUM(AE8:AE11) -> 0
B13: p | C13: Mutism (pride) | F13: 0.5 | G13: 6 | H13: 3 | I13: pou | J13: =H13*H14/2 -> 0.75 | L13: =F13*K13 -> 0 | M13: =K13*K14/2 -> 0 | O13: =F13*N13 -> 0 | P13: =N13*N14/2 -> 0 | R13: =F13*Q13 -> 0 | S13: =Q13*Q14/2 -> 0 | U13: =F13*T13 -> 0 | V13: =T13*T14/2 -> 0 | X13: =F13*W13 -> 0 | Y13: =W13*W14/2 -> 0 | AA13: =F13*Z13 -> 0 | AB13: =Z13*Z14/2 -> 0 | AD13: =F13*AC13 -> 0 | AE13: =AC13*AC14/2 -> 0
B14: u | C14: Unmotivated loquacity | F14: 0.5 | G14: 1 | H14: 0.5 | I14: uos | J14: =H14*H15/2 -> 2.025 | L14: =F14*K14 -> 0 | M14: =K14*K15/2 -> 0 | O14: =F14*N14 -> 0 | P14: =N14*N15/2 -> 0 | R14: =F14*Q14 -> 0 | S14: =Q14*Q15/2 -> 0 | U14: =F14*T14 -> 0 | V14: =T14*T15/2 -> 0 | X14: =F14*W14 -> 0 | Y14: =W14*W15/2 -> 0 | AA14: =F14*Z14 -> 0 | AB14: =Z14*Z15/2 -> 0 | AD14: =F14*AC14 -> 0 | AE14: =AC14*AC15/2 -> 0
B15: s | C15: Self-confidence | F15: 0.9 | G15: 9 | H15: 8.1 | I15: soc | J15: =H15*H16/2 -> 25.515 | L15: =F15*K15 -> 0 | M15: =K15*K16/2 -> 0 | O15: =F15*N15 -> 0 | P15: =N15*N16/2 -> 0 | R15: =F15*Q15 -> 0 | S15: =Q15*Q16/2 -> 0 | U15: =F15*T15 -> 0 | V15: =T15*T16/2 -> 0 | X15: =F15*W15 -> 0 | Y15: =W15*W16/2 -> 0 | AA15: =F15*Z15 -> 0 | AB15: =Z15*Z16/2 -> 0 | AD15: =F15*AC15 -> 0 | AE15: =AC15*AC16/2 -> 0
B16: c | C16: Uncertainty | F16: 0.9 | G16: 7 | H16: 6.3 | I16: cop | J16: =H16*H13/2 -> 9.45 | L16: =F16*K16 -> 0 | M16: =K16*K13/2 -> 0 | O16: =F16*N16 -> 0 | P16: =N16*N13/2 -> 0 | R16: =F16*Q16 -> 0 | S16: =Q16*Q13/2 -> 0 | U16: =F16*T16 -> 0 | V16: =T16*T13/2 -> 0 | X16: =F16*W16 -> 0 | Y16: =W16*W13/2 -> 0 | AA16: =F16*Z16 -> 0 | AB16: =Z16*Z13/2 -> 0 | AD16: =F16*AC16 -> 0 | AE16: =AC16*AC13/2 -> 0
I17: subΣ: | J17: =SUM(J13:J16) -> 37.74 | L17: subΣ: | M17: =SUM(M13:M16) -> 0 | O17: subΣ: | P17: =SUM(P13:P16) -> 0 | R17: subΣ: | S17: =SUM(S13:S16) -> 0 | U17: subΣ: | V17: =SUM(V13:V16) -> 0 | X17: subΣ: | Y17: =SUM(Y13:Y16) -> 0 | AA17: subΣ: | AB17: =SUM(AB13:AB16) -> 0 | AD17: subΣ: | AE17: =SUM(AE13:AE16) -> 0
I18: Totoal Σ: | J18: =J12+J17 -> 97.385 | L18: Totoal Σ: | M18: =M12+M17 -> 0 | O18: Totoal Σ: | P18: =P12+P17 -> 0 | R18: Totoal Σ: | S18: =S12+S17 -> 0 | U18: Totoal Σ: | V18: =V12+V17 -> 0 | X18: Totoal Σ: | Y18: =Y12+Y17 -> 0 | AA18: Totoal Σ: | AB18: =AB12+AB17 -> 0 | AD18: Totoal Σ: | AE18: =AE12+AE17 -> 0
F20: Event's Code: | G20: 2000008 | J20: =$J$7 -> 0 | K20: 2000009 | M20: =$J$7 -> 0 | N20: =G20+2 -> 2000010 | P20: =$J$7 -> 0 | Q20: 2000011 | S20: =$J$7 -> 0 | T20: =N20+2 -> 2000012 | V20: =$J$7 -> 0 | W20: 2000013 | Y20: =$J$7 -> 0 | Z20: =T20+2 -> 2000014 | AB20: =$J$7 -> 0 | AC20: 2000015 | AE20: =$J$7 -> 0
B21: m | C21: Momentary inferiority | F21: 0.7 | H21: =F21*G21 -> 0 | I21: moe | J21: =H21*H22/2 -> 0 | L21: =F21*K21 -> 0 | M21: =K21*K22/2 -> 0 | O21: =F21*N21 -> 0 | P21: =N21*N22/2 -> 0 | R21: =F21*Q21 -> 0 | S21: =Q21*Q22/2 -> 0 | U21: =F21*T21 -> 0 | V21: =T21*T22/2 -> 0 | X21: =F21*W21 -> 0 | Y21: =W21*W22/2 -> 0 | AA21: =F21*Z21 -> 0 | AB21: =Z21*Z22/2 -> 0 | AD21: =F21*AC21 -> 0 | AE21: =AC21*AC22/2 -> 0
B22: e | C22: Insinceer exprs. of simpathy | F22: 0.5 | H22: =F22*G22 -> 0 | I22: eon | J22: =H22*H23/2 -> 0 | L22: =F22*K22 -> 0 | M22: =K22*K23/2 -> 0 | O22: =F22*N22 -> 0 | P22: =N22*N23/2 -> 0 | R22: =F22*Q22 -> 0 | S22: =Q22*Q23/2 -> 0 | U22: =F22*T22 -> 0 | V22: =T22*T23/2 -> 0 | X22: =F22*W22 -> 0 | Y22: =W22*W23/2 -> 0 | AA22: =F22*Z22 -> 0 | AB22: =Z22*Z23/2 -> 0 | AD22: =F22*AC22 -> 0 | AE22: =AC22*AC23/2 -> 0
B23: n | C23: Negativism | F23: 1 | H23: =F23*G23 -> 0 | I23: ion | J23: =H24*H23/2 -> 0 | L23: 0 | M23: =K24*K23/2 -> 0 | O23: =F23*N23 -> 0 | P23: =N24*N23/2 -> 0 | R23: =F23*Q23 -> 0 | S23: =Q24*Q23/2 -> 0 | U23: =F23*T23 -> 0 | V23: =T24*T23/2 -> 0 | X23: =F23*W23 -> 0 | Y23: =W24*W23/2 -> 0 | AA23: =F23*Z23 -> 0 | AB23: =Z24*Z23/2 -> 0 | AD23: =F23*AC23 -> 0 | AE23: =AC24*AC23/2 -> 0
B24: i | C24: Increase importance | F24: 1.4 | H24: =F24*G24 -> 0 | I24: moi | J24: =H21*H24/2 -> 0 | L24: 0 | M24: =K21*K24/2 -> 0 | O24: =F24*N24 -> 0 | P24: =N21*N24/2 -> 0 | R24: =F24*Q24 -> 0 | S24: =Q21*Q24/2 -> 0 | U24: =F24*T24 -> 0 | V24: =T21*T24/2 -> 0 | X24: =F24*W24 -> 0 | Y24: =W21*W24/2 -> 0 | AA24: =F24*Z24 -> 0 | AB24: =Z21*Z24/2 -> 0 | AD24: =F24*AC24 -> 0 | AE24: =AC21*AC24/2 -> 0
I25: subΣ: | J25: =SUM(J21:J24) -> 0 | L25: subΣ: | M25: =SUM(M21:M24) -> 0 | O25: subΣ: | P25: =SUM(P21:P24) -> 0 | R25: subΣ: | S25: =SUM(S21:S24) -> 0 | U25: subΣ: | V25: =SUM(V21:V24) -> 0 | X25: subΣ: | Y25: =SUM(Y21:Y24) -> 0 | AA25: subΣ: | AB25: =SUM(AB21:AB24) -> 0 | AD25: subΣ: | AE25: =SUM(AE21:AE24) -> 0
B26: p | C26: Mutism (pride) | F26: 0.5 | H26: =F26*G26 -> 0 | I26: pou | J26: =H26*H27/2 -> 0 | L26: 0 | M26: =K26*K27/2 -> 0 | O26: =F26*N26 -> 0 | P26: =N26*N27/2 -> 0 | R26: =F26*Q26 -> 0 | S26: =Q26*Q27/2 -> 0 | U26: =F26*T26 -> 0 | V26: =T26*T27/2 -> 0 | X26: =F26*W26 -> 0 | Y26: =W26*W27/2 -> 0 | AA26: =F26*Z26 -> 0 | AB26: =Z26*Z27/2 -> 0 | AD26: =F26*AC26 -> 0 | AE26: =AC26*AC27/2 -> 0
B27: u | C27: Unmotivated loquacity | F27: 0.5 | H27: =F27*G27 -> 0 | I27: uos | J27: =H27*H28/2 -> 0 | L27: 0 | M27: =K27*K28/2 -> 0 | O27: =F27*N27 -> 0 | P27: =N27*N28/2 -> 0 | R27: =F27*Q27 -> 0 | S27: =Q27*Q28/2 -> 0 | U27: =F27*T27 -> 0 | V27: =T27*T28/2 -> 0 | X27: =F27*W27 -> 0 | Y27: =W27*W28/2 -> 0 | AA27: =F27*Z27 -> 0 | AB27: =Z27*Z28/2 -> 0 | AD27: =F27*AC27 -> 0 | AE27: =AC27*AC28/2 -> 0
B28: s | C28: Self-confidence | F28: 0.9 | H28: =F28*G28 -> 0 | I28: soc | J28: =H28*H29/2 -> 0 | L28: 0 | M28: =K28*K29/2 -> 0 | O28: =F28*N28 -> 0 | P28: =N28*N29/2 -> 0 | R28: =F28*Q28 -> 0 | S28: =Q28*Q29/2 -> 0 | U28: =F28*T28 -> 0 | V28: =T28*T29/2 -> 0 | X28: =F28*W28 -> 0 | Y28: =W28*W29/2 -> 0 | AA28: =F28*Z28 -> 0 | AB28: =Z28*Z29/2 -> 0 | AD28: =F28*AC28 -> 0 | AE28: =AC28*AC29/2 -> 0
B29: c | C29: Uncertanty | F29: 0.9 | H29: =F29*G29 -> 0 | I29: cop | J29: =H29*H26/2 -> 0 | L29: 0 | M29: =K29*K26/2 -> 0 | O29: =F29*N29 -> 0 | P29: =N29*N26/2 -> 0 | R29: =F29*Q29 -> 0 | S29: =Q29*Q26/2 -> 0 | U29: =F29*T29 -> 0 | V29: =T29*T26/2 -> 0 | X29: =F29*W29 -> 0 | Y29: =W29*W26/2 -> 0 | AA29: =F29*Z29 -> 0 | AB29: =Z29*Z26/2 -> 0 | AD29: =F29*AC29 -> 0 | AE29: =AC29*AC26/2 -> 0
I30: subΣ: | J30: =SUM(J26:J29) -> 0 | L30: subΣ: | M30: =SUM(M26:M29) -> 0 | O30: subΣ: | P30: =SUM(P26:P29) -> 0 | R30: subΣ: | S30: =SUM(S26:S29) -> 0 | U30: subΣ: | V30: =SUM(V26:V29) -> 0 | X30: subΣ: | Y30: =SUM(Y26:Y29) -> 0 | AA30: subΣ: | AB30: =SUM(AB26:AB29) -> 0 | AD30: subΣ: | AE30: =SUM(AE26:AE29) -> 0
I31: Totoal Σ: | J31: =J25+J30 -> 0 | L31: Totoal Σ: | M31: =M25+M30 -> 0 | O31: Totoal Σ: | P31: =P25+P30 -> 0 | R31: Totoal Σ: | S31: =S25+S30 -> 0 | U31: Totoal Σ: | V31: =V25+V30 -> 0 | X31: Totoal Σ: | Y31: =Y25+Y30 -> 0 | AA31: Totoal Σ: | AB31: =AB25+AB30 -> 0 | AD31: Totoal Σ: | AE31: =AE25+AE30 -> 0
F33: Event's Code: | G33: 2000016 | J33: =$J$7 -> 0 | K33: 2000017 | M33: =$J$7 -> 0 | N33: 2000018 | P33: =$J$7 -> 0 | Q33: 2000019 | S33: =$J$7 -> 0 | T33: 2000020 | V33: =$J$7 -> 0 | W33: 2000021 | Y33: =$J$7 -> 0 | Z33: 2000022 | AB33: =$J$7 -> 0 | AC33: 2000023 | AE33: =$J$7 -> 0
B34: m | F34: 0.7 | H34: =F34*G34 -> 0 | I34: moe | J34: =H34*H35/2 -> 0 | L34: =F34*K34 -> 0 | M34: =K34*K35/2 -> 0 | O34: =F34*N34 -> 0 | P34: =N34*N35/2 -> 0 | R34: =F34*Q34 -> 0 | S34: =Q34*Q35/2 -> 0 | U34: =F34*T34 -> 0 | V34: =T34*T35/2 -> 0 | X34: =F34*W34 -> 0 | Y34: =W34*W35/2 -> 0 | AA34: =F34*Z34 -> 0 | AB34: =Z34*Z35/2 -> 0 | AD34: =F34*AC34 -> 0 | AE34: =AC34*AC35/2 -> 0
B35: e | C35: Momentary inferiority | F35: 0.5 | H35: =F35*G35 -> 0 | I35: eon | J35: =H35*H36/2 -> 0 | L35: 0 | M35: =K35*K36/2 -> 0 | O35: =F35*N35 -> 0 | P35: =N35*N36/2 -> 0 | R35: =F35*Q35 -> 0 | S35: =Q35*Q36/2 -> 0 | U35: =F35*T35 -> 0 | V35: =T35*T36/2 -> 0 | X35: =F35*W35 -> 0 | Y35: =W35*W36/2 -> 0 | AA35: =F35*Z35 -> 0 | AB35: =Z35*Z36/2 -> 0 | AD35: =F35*AC35 -> 0 | AE35: =AC35*AC36/2 -> 0
B36: n | C36: Insinceer exprs. of simpathy | F36: 1 | H36: =F36*G36 -> 0 | I36: ion | J36: =H37*H36/2 -> 0 | L36: 0 | M36: =K37*K36/2 -> 0 | O36: =F36*N36 -> 0 | P36: =N37*N36/2 -> 0 | R36: =F36*Q36 -> 0 | S36: =Q37*Q36/2 -> 0 | U36: =F36*T36 -> 0 | V36: =T37*T36/2 -> 0 | X36: =F36*W36 -> 0 | Y36: =W37*W36/2 -> 0 | AA36: =F36*Z36 -> 0 | AB36: =Z37*Z36/2 -> 0 | AD36: =F36*AC36 -> 0 | AE36: =AC37*AC36/2 -> 0
B37: i | C37: Negativism | F37: 1.4 | H37: =F37*G37 -> 0 | I37: moi | J37: =H34*H37/2 -> 0 | L37: 0 | M37: =K34*K37/2 -> 0 | O37: =F37*N37 -> 0 | P37: =N34*N37/2 -> 0 | R37: =F37*Q37 -> 0 | S37: =Q34*Q37/2 -> 0 | U37: =F37*T37 -> 0 | V37: =T34*T37/2 -> 0 | X37: =F37*W37 -> 0 | Y37: =W34*W37/2 -> 0 | AA37: =F37*Z37 -> 0 | AB37: =Z34*Z37/2 -> 0 | AD37: =F37*AC37 -> 0 | AE37: =AC34*AC37/2 -> 0
C38: Increase importance | I38: subΣ: | J38: =SUM(J34:J37) -> 0 | L38: subΣ: | M38: =SUM(M34:M37) -> 0 | O38: subΣ: | P38: =SUM(P34:P37) -> 0 | R38: subΣ: | S38: =SUM(S34:S37) -> 0 | U38: subΣ: | V38: =SUM(V34:V37) -> 0 | X38: subΣ: | Y38: =SUM(Y34:Y37) -> 0 | AA38: subΣ: | AB38: =SUM(AB34:AB37) -> 0 | AD38: subΣ: | AE38: =SUM(AE34:AE37) -> 0
B39: p | F39: 0.5 | H39: =F39*G39 -> 0 | I39: pou | J39: =H39*H40/2 -> 0 | L39: =F39*K39 -> 0 | M39: =K39*K40/2 -> 0 | O39: =F39*N39 -> 0 | P39: =N39*N40/2 -> 0 | R39: =F39*Q39 -> 0 | S39: =Q39*Q40/2 -> 0 | U39: =F39*T39 -> 0 | V39: =T39*T40/2 -> 0 | X39: =F39*W39 -> 0 | Y39: =W39*W40/2 -> 0 | AA39: =F39*Z39 -> 0 | AB39: =Z39*Z40/2 -> 0 | AD39: =F39*AC39 -> 0 | AE39: =AC39*AC40/2 -> 0
B40: u | C40: Mutism (pride) | F40: 0.5 | H40: =F40*G40 -> 0 | I40: uos | J40: =H40*H41/2 -> 0 | L40: 0 | M40: =K40*K41/2 -> 0 | O40: =F40*N40 -> 0 | P40: =N40*N41/2 -> 0 | R40: =F40*Q40 -> 0 | S40: =Q40*Q41/2 -> 0 | U40: =F40*T40 -> 0 | V40: =T40*T41/2 -> 0 | X40: =F40*W40 -> 0 | Y40: =W40*W41/2 -> 0 | AA40: =F40*Z40 -> 0 | AB40: =Z40*Z41/2 -> 0 | AD40: =F40*AC40 -> 0 | AE40: =AC40*AC41/2 -> 0
B41: s | C41: Unmotivated loquacity | F41: 0.9 | H41: =F41*G41 -> 0 | I41: soc | J41: =H41*H42/2 -> 0 | L41: =F41*K41 -> 0 | M41: =K41*K42/2 -> 0 | O41: =F41*N41 -> 0 | P41: =N41*N42/2 -> 0 | R41: =F41*Q41 -> 0 | S41: =Q41*Q42/2 -> 0 | U41: =F41*T41 -> 0 | V41: =T41*T42/2 -> 0 | X41: =F41*W41 -> 0 | Y41: =W41*W42/2 -> 0 | AA41: =F41*Z41 -> 0 | AB41: =Z41*Z42/2 -> 0 | AD41: =F41*AC41 -> 0 | AE41: =AC41*AC42/2 -> 0
B42: c | C42: Self-confidence | F42: 0.9 | H42: =F42*G42 -> 0 | I42: cop | J42: =H42*H39/2 -> 0 | L42: 0 | M42: =K42*K39/2 -> 0 | O42: =F42*N42 -> 0 | P42: =N42*N39/2 -> 0 | R42: =F42*Q42 -> 0 | S42: =Q42*Q39/2 -> 0 | U42: =F42*T42 -> 0 | V42: =T42*T39/2 -> 0 | X42: =F42*W42 -> 0 | Y42: =W42*W39/2 -> 0 | AA42: =F42*Z42 -> 0 | AB42: =Z42*Z39/2 -> 0 | AD42: =F42*AC42 -> 0 | AE42: =AC42*AC39/2 -> 0
C43: Uncertanty | I43: subΣ: | J43: =SUM(J39:J42) -> 0 | L43: subΣ: | M43: =SUM(M39:M42) -> 0 | O43: subΣ: | P43: =SUM(P39:P42) -> 0 | R43: subΣ: | S43: =SUM(S39:S42) -> 0 | U43: subΣ: | V43: =SUM(V39:V42) -> 0 | X43: subΣ: | Y43: =SUM(Y39:Y42) -> 0 | AA43: subΣ: | AB43: =SUM(AB39:AB42) -> 0 | AD43: subΣ: | AE43: =SUM(AE39:AE42) -> 0
I44: Totoal Σ: | J44: =J38+J43 -> 0 | L44: Totoal Σ: | M44: =M38+M43 -> 0 | O44: Totoal Σ: | P44: =P38+P43 -> 0 | R44: Totoal Σ: | S44: =S38+S43 -> 0 | U44: Totoal Σ: | V44: =V38+V43 -> 0 | X44: Totoal Σ: | Y44: =Y38+Y43 -> 0 | AA44: Totoal Σ: | AB44: =AB38+AB43 -> 0 | AD44: Totoal Σ: | AE44: =AE38+AE43 -> 0
F46: Event's Code: | G46: 2000024 | J46: =$J$7 -> 0 | K46: 2000025 | M46: =$J$7 -> 0 | N46: 2000026 | P46: =$J$7 -> 0 | Q46: 2000027 | S46: =$J$7 -> 0 | T46: 2000028 | V46: =$J$7 -> 0 | W46: 2000029 | Y46: =$J$7 -> 0 | Z46: 2000030 | AB46: =$J$7 -> 0 | AC46: 2000031 | AE46: =$J$7 -> 0
B47: m | F47: 0.7 | H47: =F47*G47 -> 0 | I47: moe | J47: =H47*H48/2 -> 0 | L47: =F47*K47 -> 0 | M47: =K47*K48/2 -> 0 | O47: =F47*N47 -> 0 | P47: =N47*N48/2 -> 0 | R47: =F47*Q47 -> 0 | S47: =Q47*Q48/2 -> 0 | U47: =F47*T47 -> 0 | V47: =T47*T48/2 -> 0 | X47: =F47*W47 -> 0 | Y47: =W47*W48/2 -> 0 | AA47: =F47*Z47 -> 0 | AB47: =Z47*Z48/2 -> 0 | AD47: =F47*AC47 -> 0 | AE47: =AC47*AC48/2 -> 0
B48: e | C48: Momentary inferiority | F48: 0.5 | H48: =F48*G48 -> 0 | I48: eon | J48: =H48*H49/2 -> 0 | L48: =F48*K48 -> 0 | M48: =K48*K49/2 -> 0 | O48: =F48*N48 -> 0 | P48: =N48*N49/2 -> 0 | R48: =F48*Q48 -> 0 | S48: =Q48*Q49/2 -> 0 | U48: =F48*T48 -> 0 | V48: =T48*T49/2 -> 0 | X48: =F48*W48 -> 0 | Y48: =W48*W49/2 -> 0 | AA48: =F48*Z48 -> 0 | AB48: =Z48*Z49/2 -> 0 | AD48: =F48*AC48 -> 0 | AE48: =AC48*AC49/2 -> 0
B49: n | C49: Insinceer exprs. of simpathy | F49: 1 | H49: =F49*G49 -> 0 | I49: ion | J49: =H50*H49/2 -> 0 | L49: =F49*K49 -> 0 | M49: =K50*K49/2 -> 0 | O49: =F49*N49 -> 0 | P49: =N50*N49/2 -> 0 | R49: =F49*Q49 -> 0 | S49: =Q50*Q49/2 -> 0 | U49: =F49*T49 -> 0 | V49: =T50*T49/2 -> 0 | X49: =F49*W49 -> 0 | Y49: =W50*W49/2 -> 0 | AA49: =F49*Z49 -> 0 | AB49: =Z50*Z49/2 -> 0 | AD49: =F49*AC49 -> 0 | AE49: =AC50*AC49/2 -> 0
B50: i | C50: Negativism | F50: 1.4 | H50: =F50*G50 -> 0 | I50: moi | J50: =H47*H50/2 -> 0 | L50: =F50*K50 -> 0 | M50: =K47*K50/2 -> 0 | O50: =F50*N50 -> 0 | P50: =N47*N50/2 -> 0 | R50: =F50*Q50 -> 0 | S50: =Q47*Q50/2 -> 0 | U50: =F50*T50 -> 0 | V50: =T47*T50/2 -> 0 | X50: =F50*W50 -> 0 | Y50: =W47*W50/2 -> 0 | AA50: =F50*Z50 -> 0 | AB50: =Z47*Z50/2 -> 0 | AD50: =F50*AC50 -> 0 | AE50: =AC47*AC50/2 -> 0
C51: Increase importance | I51: subΣ: | J51: =SUM(J47:J50) -> 0 | M51: =SUM(M47:M50) -> 0 | O51: subΣ: | P51: =SUM(P47:P50) -> 0 | S51: =SUM(S47:S50) -> 0 | U51: subΣ: | V51: =SUM(V47:V50) -> 0 | Y51: =SUM(Y47:Y50) -> 0 | AA51: subΣ: | AB51: =SUM(AB47:AB50) -> 0 | AE51: =SUM(AE47:AE50) -> 0
B52: p | F52: 0.5 | H52: =F52*G52 -> 0 | I52: pou | J52: =H52*H53/2 -> 0 | L52: =F52*K52 -> 0 | M52: =K52*K53/2 -> 0 | O52: =F52*N52 -> 0 | P52: =N52*N53/2 -> 0 | R52: =F52*Q52 -> 0 | S52: =Q52*Q53/2 -> 0 | U52: =F52*T52 -> 0 | V52: =T52*T53/2 -> 0 | X52: =F52*W52 -> 0 | Y52: =W52*W53/2 -> 0 | AA52: =F52*Z52 -> 0 | AB52: =Z52*Z53/2 -> 0 | AD52: =F52*AC52 -> 0 | AE52: =AC52*AC53/2 -> 0
B53: u | C53: Mutism (pride) | F53: 0.5 | H53: =F53*G53 -> 0 | I53: uos | J53: =H53*H54/2 -> 0 | L53: =F53*K53 -> 0 | M53: =K53*K54/2 -> 0 | O53: =F53*N53 -> 0 | P53: =N53*N54/2 -> 0 | R53: =F53*Q53 -> 0 | S53: =Q53*Q54/2 -> 0 | U53: =F53*T53 -> 0 | V53: =T53*T54/2 -> 0 | X53: =F53*W53 -> 0 | Y53: =W53*W54/2 -> 0 | AA53: =F53*Z53 -> 0 | AB53: =Z53*Z54/2 -> 0 | AD53: =F53*AC53 -> 0 | AE53: =AC53*AC54/2 -> 0
B54: s | C54: Unmotivated loquacity | F54: 0.9 | H54: =F54*G54 -> 0 | I54: soc | J54: =H54*H55/2 -> 0 | L54: =F54*K54 -> 0 | M54: =K54*K55/2 -> 0 | O54: =F54*N54 -> 0 | P54: =N54*N55/2 -> 0 | R54: =F54*Q54 -> 0 | S54: =Q54*Q55/2 -> 0 | U54: =F54*T54 -> 0 | V54: =T54*T55/2 -> 0 | X54: =F54*W54 -> 0 | Y54: =W54*W55/2 -> 0 | AA54: =F54*Z54 -> 0 | AB54: =Z54*Z55/2 -> 0 | AD54: =F54*AC54 -> 0 | AE54: =AC54*AC55/2 -> 0
B55: c | C55: Self-confidence | F55: 0.9 | H55: =F55*G55 -> 0 | I55: cop | J55: =H55*H52/2 -> 0 | L55: =F55*K55 -> 0 | M55: =K55*K52/2 -> 0 | O55: =F55*N55 -> 0 | P55: =N55*N52/2 -> 0 | R55: =F55*Q55 -> 0 | S55: =Q55*Q52/2 -> 0 | U55: =F55*T55 -> 0 | V55: =T55*T52/2 -> 0 | X55: =F55*W55 -> 0 | Y55: =W55*W52/2 -> 0 | AA55: =F55*Z55 -> 0 | AB55: =Z55*Z52/2 -> 0 | AD55: =F55*AC55 -> 0 | AE55: =AC55*AC52/2 -> 0
C56: Uncertanty | I56: subΣ: | J56: =SUM(J52:J55) -> 0 | L56: subΣ: | M56: =SUM(M52:M55) -> 0 | P56: =SUM(P52:P55) -> 0 | R56: subΣ: | S56: =SUM(S52:S55) -> 0 | U56: subΣ: | V56: =SUM(V52:V55) -> 0 | X56: subΣ: | Y56: =SUM(Y52:Y55) -> 0 | AA56: subΣ: | AB56: =SUM(AB52:AB55) -> 0 | AD56: subΣ: | AE56: =SUM(AE52:AE55) -> 0
I57: Totoal Σ: | J57: =J51+J56 -> 0 | L57: Totoal Σ: | M57: =M51+M56 -> 0 | O57: Totoal Σ: | P57: =P51+P56 -> 0 | R57: Totoal Σ: | S57: =S51+S56 -> 0 | U57: Totoal Σ: | V57: =V51+V56 -> 0 | X57: Totoal Σ: | Y57: =Y51+Y56 -> 0 | AA57: Totoal Σ: | AB57: =AB51+AB56 -> 0 | AD57: Totoal Σ: | AE57: =AE51+AE56 -> 0
